Workbook

Sheet Summary
B2: SUMMARY OF SCHEDULE OF QUANTITIES
B4: SECTION | C4: DESCRIPTION | J4: TOTAL
B5: SECTION A: | C5: PRELIMINARY AND GENERAL | I5: R
B7: SECTION C: | C7: SITE CLEARANCE | I7: R
B9: SECTION D: | C9: EARTHWORKS | I9: R
B11: SECTION DB: | C11: EARTHWORK (PIPE TRENCHES) | I11: R
B13: SECTION G: | C13: CONCRETE | I13: R
B15: SECTION HA: | C15: STRUCTURAL STEELWORK | I15: R
B17: SECTION HC: | C17: CORROSION PROTECTION OF STRUCTURAL STEEL | I17: R
B19: SECTION L: | C19: WATER MAINS | I19: R
B21: SECTION LB: | C21: BEDDING FOR PIPES | I21: R
B23: SECTION LD: | C23: SEWER | I23: R
B25: SECTION LG: | C25: PIPE JACKING | I25: R
B27: SECTION ME: | C27: SUBBASE | I27: R
B29: SECTION MJ: | C29: SEGMENTED PAVING | I29: R
B31: SECTION MK: | C31: KERBING AND CHANNELLING | I31: R | P31: `
B33: SECTION PLB: | C33: MISCELLANEOUS WORKS FOR TANKS | I33: R
B35: SECTION PLG: | C35: ELECTRICAL WORKS | I35: R
B37: TOTAL FOR SCHEDULE OF QUANTITIES | I37: R
B39: ADD CONTINGENCIES (10%) | I39: R
B41: ADD ESCALATION (5%) | I41: R
B42: SUBTOTAL | I42: R
B43: ADD 15 % VAT | I43: R
B45: TOTAL FOR TENDER (FORWARD TO THE FORM OF TENDER) | I45: R

Sheet C
A2: ITEM NO | B2: PAYMENT REFERS | C2: SHORT DESCRIPTION | D2: UNIT | E2: QUANTITY | F2: RATE | G2: ADJUSTED RATE | H2: AMOUNT
B4: SABS 1200 C | C4: SECTION C: SITE CLEARANCE
A6: C1 | C6: CLEAR SITE
A7: C1.1 | B7: 8.2.1 | C7: Clear and grub site and remove any obstruction that may occur and spoil to designated site. Only areas indicated in writing by Engineer must be cleared:
C8: Clear and grub including all vegetation for Site footprint | D8: m² | E8: 2,255 | F8: 35.00
A10: C1.2 | B10: PSC 5.1 | C10: Clear and grub including all vegetation for pipe route 3m wide. | D10: m | E10: 1,154 | F10: 60.00
A12: C1.3 | B12: PSC 3.1 | C12: Transport spoil material to unspecified sites and dump (provisional) | D12: m³.km | E12: 7,662 | F12: 23.00
C14: SITE PREPARATION
A15: C1.4 | B15: 8.2.10 | C15: Remove top soil to nominal depth 75 mm, stockpile and maintain | D15: m³ | E15: 187 | F15: 100.00
B57: TOTAL FOR SECTION C CARRIED FORWARD TO SUMMARY | F57: R | G57: R

Sheet A
A2: ITEM NO | B2: PAYMENT REFERS | C2: SHORT DESCRIPTION | D2: UNIT | E2: QUANTITY | F2: RATE | G2: ADJUSTED RATE | H2: AMOUNT
B3: SANS 1200 A | C3: SECTION 1 : GENERAL
A5: A1 | B5: 8.3 | C5: Scheduled fixed-charge and value- related items
A7: A1.1 | B7: 8.3.1 | C7: Contractual requirements for the provision of all sureties, Insurance of the works and Plant, Third Party Liability Insurance, Unemployment Insurance and any other statutory requirements | D7: Sum | E7: 1.0 | F7: 400,000.00
A9: A1.2 | B9: PSA 8.3.1 | C9: Fixed preliminary and general charges | D9: Sum | E9: 1.0 | F9: 20,000.00
B11: 8.3.2 | C11: Establishment of Facilities on Site (Only on the written instruction of the Engineer)
A13: A1.3 | C13: Facilities for the Engineer (See Clause C3.4.2.2)
C15: (a) Furnished offices (1 No.) | D15: Sum | E15: 1.0 | F15: 10,000.00
C16: (b) Telephone (1 Cellphone with Simcard) | D16: P. Sum | E16: 1.0 | F16: 10,000.00 | G16: 12,500.00 | H16: =G16 -> 12,500.00
C17: (c) Percentage mark-up on (a+b) above | D17: % | E17: =H16+H15 -> 12,500.0 | F17: 10%
C18: (d) Nameboards ( No.) | D18: Sum | E18: 1.0 | F18: 20,000.00
C19: (e) PPE for Engineer and assistants | D19: Sum | E19: 1.0 | F19: 5,000.00
C20: (f) Survey instruments, etc. | D20: Sum | E20: 1.0 | F20: 7,500.00
A22: A1.4 | B22: 8.3.2.2 | C22: Facilities for the Contractor
C24: All facilities as scheduled in Clause 8.3.2.2 of SABS 1200A
C25: (a) Offices and storage sheds | D25: Sum | E25: 1.0 | F25: 40,000.00
C26: (b) Workshops | D26: Sum | E26: 1.0 | F26: 25,000.00
C27: (c) Laboratories | D27: Sum | E27: 1.0 | F27: 15,000.00
C28: (d) Living accommodation | D28: Sum | E28: 1.0 | F28: 12,500.00
C29: (e) Ablution and toilet facilities | D29: Sum | E29: 1.0 | F29: 15,000.00
C30: (f) Tools and equipment | D30: Sum | E30: 1.0 | F30: 30,000.00
C31: (g) Water supplies, electric power and communications | D31: Sum | E31: 1.0 | F31: 25,000.00
C32: (h) Protection against water and storms (see PSA 5.5) | D32: Sum | E32: 1.0 | F32: 20,000.00
C33: (i) Access | D33: Sum | E33: 1.0 | F33: 15,000.00
C34: (j) Plant | D34: Sum | E34: 1.0 | F34: 50,000.00
C35: (k) PPE for Contractors staff, suppliers, subcontractors and visitors | D35: Sum | E35: 1.0 | F35: 70,000.00
A37: A1.5 | B37: 8.3.3 | C37: Other fixed-charge obligations | D37: Sum | E37: 1.0 | F37: 25,000.00
A39: A1.5.1 | C39: Removal of Site Establishment (On Instruction by Engineer) | D39: Sum | E39: 1.0 | F39: 75,000.00
A41: A1.5.2 | B41: PS7.1 | C41: Provision of a Safety Plan in terms of OHS Act and Safety Regulations | D41: Sum | E41: 1.0 | F41: 15,000.00
A43: A2 | B43: 8.4 | C43: Scheduled Time-related items
A45: A2.1 | B45: PSA 8.4.1 | C45: Time-related preliminary and general items | D45: Month | E45: 16.0 | F45: 50,000.00
A47: A2.2 | B47: 8.4.2 | C47: Operation and maintenance of facilities for the duration of construction
A49: TOTAL CARRIED FORWARD | F49: R | G49: R
A50: BROUGHT FORWARD | F50: R | G50: R
A52: A2.3 | B52: 8.4.2.1 | C52: Facilities for the Engineer
C54: (a) Furnished offices (1 No.) | D54: Month | E54: 16.0 | F54: 1,500.00
C55: (b) Telephone (R900 per month airtime for celphone) | D55: Month | E55: 16.0 | F55: 900.00
C56: (c) Nameboards (2 No.) | D56: Month | E56: 16.0 | F56: 500.00
C57: (d) Survey instruments, etc. | D57: Month | E57: 16.0 | F57: 500.00
C58: (e) PPE for Engineer and assistants | D58: Month | E58: 16.0 | F58: 500.00
A60: A2.4 | B60: 8.4.2.2 | C60: Facilities for the Contractor
C62: All facilities as scheduled in Clause 8.4.2.2 of SABS 1200A
C63: (a) Offices and storage | D63: Month | E63: 16.0 | F63: 9,500.00
C64: (b) Workshops | D64: Month | E64: 16.0 | F64: 5,000.00
C65: (c) Laboratories | D65: Month | E65: 16.0 | F65: 5,000.00
C66: (d) Living accommodation | D66: Month | E66: 16.0 | F66: 9,500.00
C67: (e) Ablution and toilet | D67: Month | E67: 16.0 | F67: 5,500.00
C68: (f) Tools and equipment | D68: Month | E68: 16.0 | F68: 12,500.00
C69: (g) Water supplies, electric power and communications | D69: Month | E69: 16.0 | F69: 5,000.00
C70: (h) Dealing with water (Sub-clause5.8) | D70: Month | E70: 16.0 | F70: 4,000.00
C71: (i) Access (Sub-clause 5.8) | D71: Month | E71: 16.0 | F71: 5,000.00
C72: (j) Plant | D72: Month | E72: 16.0 | F72: 30,000.00
A74: A2.5 | B74: 8.4.3 | C74: Supervision for duration of construction | D74: Month | E74: 16.0 | F74: 75,000.00
A76: A2.6 | B76: 8.4.4 | C76: Company and head office overhead costs for the duration of the contract | D76: Month | E76: 16.0 | F76: 50,000.00
A78: A2.7 | B78: 8.4.5 | C78: Other time-related obligations | D78: Month | E78: 16.0 | F78: 17,500.00
A80: A2.8 | B80: PSA 8.9 | C80: Compliance with OHS act and Construction Regulations | D80: Month | E80: 16.0 | F80: 20,000.00
A82: A2.9 | C82: Compliance with Record of Decision issued by GDARD | D82: Month | E82: 16.0 | F82: 3,500.00
A84: A3 | B84: 8.5 | C84: SUMS STATED PROVISIONALLY BY ENGINEER
A86: A3.1 | C86: Supply and Install lightning protection according to latest applicable SANS codes | D86: SUM | E86: 1.0 | F86: 30,000.00
A88: A3.2 | C88: Supply and install VSD, displays, DC chokes, telemetry cabinet, fibre cable, SD4 data radio, instrumentation, c/w antenna and mast | D88: SUM | E88: 1.0 | F88: 1,226,500.00
A90: A3.3 | C90: CLO's
C91: Payment for CLO
C92: (i) Remuneration of CLO (based on R10500/month incl. traveling allowance) | D92: Month | E92: 18.0 | F92: 8,500.00
C93: (ii) Cell phone allowance (R150 airtime per month) | D93: Month | E93: 18.0 | F93: 150.00
C94: (iii) Contractors mark-up on items (i) and (ii) above for Contractor's overheads, liaison, making payments and supplying office space and associated facilities within his establishment | D94: % | E94: 45,600.0 | F94: 0.10
A95: A3.4 | B95: PSA 5.5 | C95: Protection against water and storms | D95: Sum | E95: 1.0
A97: TOTAL CARRIED FORWARD | F97: R | G97: R
A98: BROUGHT FORWARD | F98: R | G98: R
A100: A3.5 | C100: Quality assurance and management plan | D100: SUM | E100: 1.0 | F100: 120,000.00
A101: A3.6 | C101: Provisional sum for Independent OHS, EMP and Electrical practitioners | D101: Prov. SUM | E101: 1.0 | F101: 200,000.00 | G101: 250,000.00 | H101: =G101 -> 250,000.00
A103: A3.7 | C103: Provide Security guard (armed response) for duration of the construction works during the day and after hours, and on instruction by the Engineer | D103: Month | E103: 16.0 | F103: 5,000.00
A105: A4 | B105: 8.7 | C105: DAYWORK | D105: Days | E105: 20.0 | F105: 1,000.00
C106: Note: Executed on Instruction of the Engineer Only
A108: A4.1 | C108: Labour
C109: (i) Un-skilled | D109: hr. | E109: 10.0 | F109: 30.00
C110: (ii) Semi-skilled | D110: hr. | E110: 10.0 | F110: 40.00
C111: (iii) Skilled (artisan - welder plumber etc.) | D111: hr. | E111: 10.0 | F111: 85.00
C112: (iv) Engineer | D112: hr. | E112: 5.0 | F112: 600.00
C113: (v) Technician | D113: hr. | E113: 5.0 | F113: 400.00
C114: (vi) Foreman | D114: hr. | E114: 10.0 | F114: 120.00
C115: (vii) Driver (LDV,machine, trucks, etc.) | D115: hr. | E115: 10.0 | F115: 120.00
C116: (viii) Certified Blaster | D116: hr. | E116: 10.0 | F116: 400.00
C117: (ix) Steel fixer | D117: hr. | E117: 10.0 | F117: 150.00
C118: (x) Concretor | D118: hr. | E118: 10.0 | F118: 150.00
C119: (xi) Charge hand | D119: hr. | E119: 10.0 | F119: 100.00
C120: (xii) Security guard | D120: hr. | E120: 10.0 | F120: 200.00
A122: A4.2 | C122: Plant and equipment
C124: (a) Tractor loader backhoe (TLB)
C125: (i) Tractor Loader Backhoe (Bigger than 45kW but smaller than 70kW) | D125: hr. | E125: 10.0 | F125: 1,000.00
C127: (b) Crawler Excavators
C128: (i) Smaller than 93kW (small) | D128: hr. | E128: 10.0 | F128: 1,200.00
C129: (ii) Bigger than 93kW but smaller than 200kW ( Medium) | D129: hr. | E129: 10.0 | F129: 1,300.00
C131: (c) Tipper Trucks
C132: (i) Tipper trucks (3m³) Small | D132: hr. | E132: 10.0 | F132: 300.00
C133: (ii) Tipper trucks (5m³) Medium | D133: hr. | E133: 10.0 | F133: 400.00
C134: (iii) Tipper trucks (10m³) Large | D134: hr. | E134: 10.0 | F134: 500.00
C136: (d) Flat Bed Trucks
C137: (i) Flat bed 5t capacity | D137: hr. | E137: 8.0 | F137: 300.00
C138: (ii) Flat bed 7t capacity | D138: hr. | E138: 8.0 | F138: 400.00
C140: (e) LDV
C141: (i) 1t Pick-up | D141: hr. | E141: 10.0 | F141: 200.00
C143: (f) Mobile Crane 5t at 3m radius | D143: hr. | E143: 10.0 | F143: 800.00
C145: (g) Walk behind vibrating rollers
C146: (i) Model - Bomag 60 or similar (small) | D146: hr. | E146: 10.0 | F146: 500.00
C147: (ii) Model - Bomag 76 or similar (medium) | D147: hr. | E147: 10.0 | F147: 700.00
C148: (iii) Model - Bomag 90 or similar | D148: hr. | E148: 10.0 | F148: 800.00
A153: TOTAL CARRIED FORWARD | F153: R | G153: R
A154: BROUGHT FORWARD | F154: R | G154: R
C155: (h) Plate compactors
C156: (i) Vipac or similar | D156: hr. | E156: 10.0 | F156: 150.00
C158: (i) Rammers
C159: (i) Model - Wacker or similar | D159: hr. | E159: 10.0 | F159: 75.00
C161: (j) Concrete mixers
C162: (i) Volume 100 litre wet (small, towable) | D162: hr. | E162: 8.0 | F162: 150.00
C163: (ii) Volume 175 litre wet (medium) | D163: hr. | E163: 8.0 | F163: 180.00
C164: (iii) Volume 250 litre wet (large) | D164: hr. | E164: 8.0 | F164: 200.00
C166: (k) Diesel compressors including hoses and tools | D166: hr | E166: 10.0 | F166: 4,398.12
C167: (i) Capacity smaller than 200 cfm (small) | D167: hr. | E167: 10.0 | F167: 250.00
C168: (ii) Capacity bigger than 200 cfm smaller than 400 cfm (medium) | D168: hr. | E168: 10.0 | F168: 300.00
C169: (iii) Capacity bigger than 400 cfm (large) | D169: hr. | E169: 10.0 | F169: 480.00
C171: (l) Waterpump
C172: (i) Capacity smaller than 400 litre/min (medium) | D172: hr | E172: 10.0 | F172: 250.00
C173: (ii) Capacity bigger than 400 but smaller than 600 litre/min (medium) | D173: hr | E173: 10.0 | F173: 300.00
C174: (iii) Capacity bigger than 600 but smaller then 1 100 litre/sec (large) | D174: hr | E174: 10.0 | F174: 480.00
A176: A5 | B176: 8.8 | C176: TEMPORARY WORKS
A177: A5.1 | C177: Provide and maintain access roads and adjacent streets including reinstatement of roads on completion of Works (or accommodation of traffic) | D177: Sum | E177: 1.0 | F177: 50,000.00
C179: Existing services
A181: A5.2 | C181: Temporarily protection of existing services | D181: P. SUM | E181: 1.0 | F181: 10,000.00 | G181: 12,500.00 | H181: =G181 -> 12,500.00
A183: A5.3 | C183: Contractor's mark-up on 108 above | D183: % | E183: =H181 -> 12,500.0 | F183: 1,000.00
A185: A5.4 | C185: Cast insitu class 20/19 concrete for encasing of existing services | D185: m³ | E185: 10.0 | F185: 1,400.00
A187: A5.5 | C187: Welded steel reinforcing mesh (Ref 395) | D187: m² | E187: 100.0 | F187: 150.00
A189: A5.6 | C189: Relocation of existing services | D189: P. SUM | E189: 1.0 | F189: 75,000.00 | G189: 93,750.00 | H189: =G189*E189 -> 93,750.00
A191: A5.7 | C191: Contractor's mark-up on A5.6 above | D191: % | E191: =H189 -> 93,750.0 | F191: 10%
A193: A6 | C193: Sub-Contractor P&G's for all packages | E193: 1.0 | F193: 6,566,101.41
C194: Contractor's mark-up on A6 above | D194: % | E194: 10% | F194: 8,207,626.76
B205: TOTAL FOR SECTION A CARRIED FORWARD TO SUMMARY | F205: R | G205: R

Sheet D
A2: ITEM NO | B2: PAYMENT REFERS | C2: SHORT DESCRIPTION | D2: UNIT | E2: QUANTITY | F2: RATE | G2: ADJUSTED RATE | H2: AMOUNT
B4: SABS 1200 D | C4: SECTION D: EARTHWORKS
A6: D1 SC | B6: PSD 8.3.2 | C6: EXCAVATION
B7: 8.3.2a | C7: Excavate in all materials and use for backfill, or dispose as ordered:
C8: (a) Tower Foundation (measured under Work Packages) | D8: m³ | E8: 228 | F8: 0.00
C9: (b) Valve Chamber | D9: m³ | E9: 353 | F9: 250.00
A11: D1.2 | B11: 8.3.2b | C11: Excavate in all materials to spoil:
C12: (a) Tower Foundation | D12: m³ | E12: 491 | F12: 300.00
C13: (b) Valve Chamber | D13: m³ | E13: 141 | F13: 300.00
A15: D1.3 | B15: 8.3.2c | C15: Extra over items D1.1 to D1.4 for excavation in:
C16: (a) Intermediate material | D16: m³ | E16: 182 | F16: 400.00
C17: (b) Hard rock material | D17: m³ | E17: 61 | F17: 600.00
A19: D1.4 | B19: 8.3.2d | C19: Extra over items D1.1 to D1.4 for excavation in:
C20: Hand excavation or other method (excluding blasting) to remove rock outcrops or rock underbreak after bulk excavation to form level site (alternative for soilcrete backfilling in rock overbreak) | D20: m³ | E20: 20 | F20: 250.00
A22: D2 | C22: EXISTING SERVICES
A23: D2.1 | B23: PSD8.3.8.1 | C23: Hand excavation for locationg and exposing existing services in:
C24: (a) Roadways | D24: m³ | E24: 30 | F24: 300.00
C25: (b) All other areas | D25: m³ | E25: 30 | F25: 300.00
A27: D3 | C27: Topsoiling from stockpile 75 mm layer:
B28: PSD 8.3.10 | C28: Level on Site | D28: m³ | E28: 114 | F28: 300.00
A30: D4 SC | C30: Extra over items PSD 8.3.2. for
B31: PSD 8.3.14 | C31: (a) Temporary stockpiling | D31: m³ | E31: =E9 -> 353 | F31: 250.00
B32: PSD 8.3.15 | C32: (b) Disposing of spoil material on a site provided by The Contractor (measured under Work Packages) | D32: m³ | E32: =E13+E12 -> 632 | F32: 0.00
A34: D5 SC | C34: Grassing
B35: PGENRD 8 | C35: Grassing (Kikuyu instant lawn) (measured under Work Packages) | D35: m³ | E35: 1,517 | F35: 0.00
B50: TOTAL FOR SECTION D CARRIED FORWARD TO SUMMARY | F50: R | G50: R

Sheet DB
A2: ITEM NO | B2: PAYMENT REFERS | C2: SHORT DESCRIPTION | D2: UNIT | E2: QUANTITY | F2: RATE | G2: ADJUSTED RATE | H2: AMOUNT
B4: SABS 1200 DB | C4: SECTION DB: PIPE TRENCHES
A6: DB1 | C6: EXCAVATION
A7: DB1.1 | B7: PSDB8.3.2a | C7: Excavate by machine in all materials for trenches, backfill, compact and dispose of surplus or unsuitable material for pipes up to 650 mm diameter for dephts:
C8: Over and up to
C9: (a) 0,0 m 1,0 m | D9: m | E9: 66 | F9: 200.00
C10: (b) 1,0 m 2,0 m | D10: m | E10: 1,022 | F10: 250.00
C11: (c) 2,0 m 3,0 m | D11: m | E11: 289 | F11: 300.00
A13: DB1.2 | B13: 8.3.2b | C13: Extra-over items DB1.1 to DB1.3 for excavation in (provisional):
C14: (a) Intermediate material | D14: m³ | E14: 492 | F14: 200.00
C15: (b) Hard rock material | D15: m³ | E15: 164 | F15: 600.00
A17: DB1.3 | B17: 8.3.2c | C17: Excavate unsuitable material from trench bottom and dispose of it | D17: m³ | E17: 65 | F17: 225.00
A19: DB2 | B19: 8.3.3 | C19: EXCAVATION ANCILLARIES
A20: DB2.1 | B20: 8.3.3.1a | C20: Imported backfill materials from trench excavation or stockpiles on site:
C21: Acquire, deliver, place and compact imported selected backfill to fill over-excavation under pipe bedding where unsuitable material under item DB1.5 is removed | D21: m³ | E21: 65 | F21: 250.00
A23: DB2.2 | B23: PSDB8.3.2(4) | C23: Backfill stabilized with 5% cement where directed by the Engineer | D23: m³ | E23: 10 | F23: 0.00
A25: DB2.3 | B25: PSDB8.3.2(5) | C25: Soilcrete backfill where directed by the Engineer | D25: m³ | E25: 15 | F25: 0.00
B51: TOTAL FOR SECTION DB CARRIED FORWARD TO SUMMARY | F51: R | G51: R

Sheet G
A2: ITEM NO | B2: PAYMENT REFERS | C2: SHORT DESCRIPTION | D2: UNIT | E2: QUANTITY | F2: RATE | G2: ADJUSTED RATE | H2: AMOUNT
B4: SABS | C4: SECTION G: CONCRETE
B5: 1200 G | C5: (STRUCTURAL)
A6: G1 | B6: 8.2 | C6: FORMWORK
B7: 8.2.2 | C7: Smooth vertical plane to:
A8: G1.1 | C8: Tower Foundation | D8: m² | E8: 123 | F8: 450.00
A9: G1.2 | C9: Chambers and thrust blocks | D9: m² | E9: 164 | F9: 650.00
B11: 8.2 | C11: FORMWORK
B12: 8.2.2 | C12: Special smooth vertical plane to:
A13: G1.3 | C13: Internal and External Shaft Walls | D13: m² | E13: 1,240 | F13: 825.00
A14: G1.4 | C14: Internal and External Tank Walls | D14: m² | E14: 828 | F14: 1,050.00
B16: 8.2.2 | C16: Smooth horizontal to:
A17: G1.5 | C17: Circular landing at top of internal tank walls | D17: m² | E17: 13 | F17: 2,350.00
A18: G1.6 | C18: Chamber soffits | D18: m² | E18: 70 | F18: 500.00
B20: 8.2.2 | C20: Smooth inclined formwork:
A21: G1.7 | C21: Inclined portion of tank walls | D21: m² | E21: 789 | F21: 2,750.00
B23: 8.2.4 | C23: Smooth domed formwork:
A24: G1.8 | C24: Domed Roof | D24: m² | E24: 178 | F24: 1,025.00
B26: 8.2.5 | C26: Narrow Widths
A27: G1.9 | C27: Chamber Bases | D27: m | E27: 49 | F27: 175.00
A28: G1.10 | C28: Tower Dome Roof | D28: m | E28: 62 | F28: 375.00
A29: G1.11 | C29: Chamber Roofs | D29: m | E29: 49 | F29: 210.00
C31: BOX OUT HOLES/FORM VOIDS
B32: PSG 8.10 | C32: Small circular holes of diameter up to 0.35m sealed with a bentonite strip when grouted.
A33: G1.12 | C33: Scour and overflow pipes | D33: No | E33: 5 | F33: 2,000.00
B35: PSG 8.10 | C35: Small circular holes of diameter 0.35m up to 0.65m sealed with a bentonite strip when grouted.
A36: G1.13 | C36: Inflow and Outflow pipes | D36: No | E36: 8 | F36: 3,500.00
A38: G2 | B38: 8.3 | C38: REINFORCEMENT
A39: G2.1 | B39: 8.3.1 | C39: Mild steel bars:
C40: Diameters 8 mm to 40 mm: average price for manholes | D40: t | E40: 22 | F40: 16,500.00
A42: G2.2 | B42: 8.3.1 | C42: High-tensile steel bars average
C43: price:
C44: Diameters 10 mm to 40 mm: average price as indicated on schedules | D44: t | E44: 223 | F44: 16,500.00
A46: G3 | B46: 8.4 | C46: CONCRETE
A47: G3.1 | B47: 8.4.2 | C47: Blinding layer in 15 MPa/19 mm concrete:
C48: 50 mm minimum thickness | D48: m² | E48: 650 | F48: 380.00
A50: G3.2 | B50: 8.4.3 | C50: Mass concrete: 15MPa/19 mm:
C51: Below tower foundation | D51: m³ | E51: 12 | F51: 1,600.00
C55: TOTAL CARRIED FORWARD | F55: R | G55: R
C56: TOTAL BROUGHT FORWARD | F56: R | G56: R
B58: 8.4.3 | C58: Strength concrete: 20 MPa/19 mm:
A59: G3.3 | C59: Concrete for Scour tank base | D59: m³ | E59: 2 | F59: 1,650.00
B61: 8.4.3 | C61: Strength concrete: 30 MPa/19 mm:
A62: G3.4 | C62: Tower Base | D62: m³ | E62: 478 | F62: 1,750.00
A63: G3.5 | C63: Chamber Base and Thrust blocks | D63: m³ | E63: 19 | F63: 1,750.00
B65: 8.4.3 | C65: Strength concrete: 35 MPa/19 mm:
A66: G3.6 | C66: Shaft Walls | D66: m³ | E66: 179 | F66: 2,100.00
A67: G3.7 | C67: Chamber and scour Walls | D67: m³ | E67: 24 | F67: 2,100.00
A68: G3.8 | C68: Dome Roof | D68: m³ | E68: 54 | F68: 2,100.00
A69: G3.9 | C69: Chamber Roof | D69: m³ | E69: 18 | F69: 2,100.00
B71: 8.4.3 | C71: Strength concrete: 40 MPa/19 mm:
A72: G3.10 | C72: Tank Walls | D72: m³ | E72: 290 | F72: 2,850.00
A74: G4 | B74: 8.4.4 | C74: UNFORMED SURFACE FINISHINGS
C75: Wood floated finishings:
A76: G4.1 | C76: Top of Tower base | D76: m² | E76: 195 | F76: 75.00
A77: G4.2 | C77: Top of dome roof and ringbeam | D77: m² | E77: 194 | F77: 95.00
A78: G4.3 | C78: Chamber Base and Overflow tank | D78: m² | E78: 77 | F78: 75.00
A79: G4.4 | C79: Chamber roof | D79: m² | E79: 70 | F79: 80.00
A81: G5 | B81: PSG8.9 | C81: CONCRETE CUBE-TESTING MACHINE
A82: G5.1 | C82: Testing of concrete cubes | D82: No | E82: 179 | F82: 300.00
A83: G5.2 | C83: Supply cube-testing machine on site with
C84: recent calibration certificate and water trough | D84: Sum | E84: 1 | F84: 6,000.00
B115: TOTAL FOR SECTION G CARRIED TO SUMMARY | F115: R | G115: R

Sheet HA
A2: ITEM NO | B2: PAYMENT REFERS | C2: SHORT DESCRIPTION | D2: UNIT | E2: QUANTITY | F2: RATE | G2: ADJUSTED RATE | H2: AMOUNT
B4: SABS | C4: SECTION HA : STRUCTURAL
B5: 1200 HA | C5: STEELWORK
A7: H1 | B7: 8.3.1 | C7: SUPPLY AND FABRICATION
A8: H1.1 SC | B8: 8.3.1.1 | C8: Preparation and submission to the Engineer for approval of shop detail drawings. (measured under Work Packages) | D8: t | E8: 11.5 | F8: 0.00
A10: H2 | C10: Supply and fabrication of steelwork
C11: A. Hot rolled steel
C12: (a) PFC Sections for platforms
A13: H2.1 SC | C13: 1. 230 x 90 mm (measured under Work Packages) | D13: t | E13: 11.5 | F13: 0.00
A14: H2.2 | C14: Trial assembly of platforms (measured under Work Packages) | D14: No | E14: 8.0 | F14: 0.00
A16: H3 | B16: 8.3.2 | C16: DELIVERY
A17: H3.1 SC | B17: 8.3.2.1 | C17: Delivery of steelwork to site of all items under 8.3.1 above (measured under Work Packages) | D17: t | E17: 11.5 | F17: 0.00
A19: H4 | B19: 8.3.3 | C19: ERECTION
A20: H4.1 SC | C20: Offloading of steel, stacking on site, and erection of steelwork of all items under 8.3.1 above (measured under Work Packages) | D20: t | E20: 11.5 | F20: 0.00
A22: H5 | B22: 8.3.4 | C22: ERECTION BOLTS
C23: Supply, deliver and storage of bolts, washer and nuts as indicated on drawing 1440a/WA/DET09
A24: H5.1 SC | C24: (a) M16 (measured under Work Packages) | D24: t | E24: 1.2 | F24: 0.00
A26: H6 | B26: 8.3.7 | C26: HANDRAILS
C27: Handrails assembly complete as per drawing 1440a/WA/DET09
A28: H6.1 SC | C28: a) Horisontal (measured under Work Packages) | D28: m | E28: 63 | F28: 0.00
A29: H6.2 SC | C29: b) Sloping on stairs at 45 deg angle (measured under Work Packages) | D29: m | E29: 66 | F29: 0.00
A31: H7 | B31: 8.3.8 | C31: LADDERS
A32: H7.1 SC | C32: Supply and install Hot dip galvanized mild steel Catladders as detailed on drawing 1440aWA/DET03 (measured under Work Packages) | D32: m | E32: 27 | F32: 0.00
A34: H8 | B34: 8.3.9 | C34: FLOORING
A35: H8.1 SC | C35: Hot dip galvanized open grid flooring complete and installed with frames for floors and stairs (measured under Work Packages) | D35: m² | E35: 175 | F35: 0.00
A37: H9 | B37: 8.3.10 | C37: NON-DESTRUCTIVE TESTING
A38: H9.1 SC | C38: Testing of welding as indicated by the engineer including supply of test certificates. (measured under Work Packages) | D38: No. | E38: 120 | F38: 0.00
A40: H10 | B40: 8.3.12 | C40: SECURITY DOOR
A41: H10.1 SC | C41: Supply and Install "TDL" type door from STRONG DOOR or similar approved. (measured under Work Packages) | D41: No | E41: 2 | F41: 0.00
B44: TOTAL FOR SECTION HA CARRIED TO SUMMARY | F44: R | G44: R

Sheet HC
A2: ITEM NO | B2: PAYMENT REFERS | C2: SHORT DESCRIPTION | D2: UNIT | E2: QUANTITY | F2: RATE | G2: ADJUSTED RATE | H2: AMOUNT
B4: SABS 1200 HC | C4: SECTION HC: CORROSION PROTECTION OF STRUCTURAL STEELWORK
A6: HC1 | B6: 8.2.3 | C6: SURFACE PREPARATION AND COATING APPLICATION
C7: Shopwork:
A8: HC1.1 | C8: Surface preparation (acid bath) and cleaning | D8: t | E8: 11.5 | F8: 2,500.00
A9: HC1.2 | C9: Hot dip Galvanzied coating | D9: t | E9: 11.5 | F9: 7,500.00
B61: TOTAL FOR SECTION HC CARRIED TO SUMMARY | F61: R

Sheet L
A2: ITEM NO | B2: PAYMENT REFERS | C2: SHORT DESCRIPTION | D2: UNIT | E2: QUANTITY | F2: RATE | G2: ADJUSTED RATE | H2: AMOUNT
B4: SABS 1200 L | C4: SECTION L: WATER MAINS
A6: L1 | B6: 8.2.2 | C6: PIPE LINE
C7: Supplying, laying, and jointing of water pipes SAW to API 5L Grade X42, 6mm thick with 6mm CML and Rigid Polyurethane coating.
C8: (a) 650mm Steel | D8: m | E8: 1,100 | F8: 4,100.00
C9: (b) 550mm Steel | D9: m | E9: 30 | F9: 3,550.00
C10: (c) 450mm Steel | D10: m | E10: 30 | F10: 2,541.72
C11: (d) 200mm Steel | D11: m | E11: 7 | F11: 525.15
A13: L2 | C13: Supplying, laying, and jointing of water pipes, Grade 316 Stainless Steel, according to SABS719, irrespective of depth.
C14: (a) 650mm Stainless Steel | D14: m | E14: 42 | F14: 40,800.00
C15: (b) 550mm Stainless Steel | D15: m | E15: 36 | F15: 29,211.83
C16: (c) 250mm Stainless Steel | D16: m | E16: 48 | F16: 6,035.50
C17: (d) 200mm Stainless Steel | D17: m | E17: 36 | F17: 3,862.72
A19: L3 | C19: CONNECTION INTO EXISTING
C20: Connection to existing pipeline complete as shown on drawings including excavation and all specials
A21: L3.1 | C21: Connection to existing pipe junctions including excavation and making good. | D21: No | E21: 2 | F21: 25,000.00
A22: L3.2 | C22: Connection to existing pipe junction at Reservoir site including excavation, breaking through walls and making good. | D22: No | E22: 1 | F22: 250,000.00
A24: L4 | C24: Bends
C25: (a) Item 1.1: S.S 90 deg 650mm dia | D25: No | E25: 2 | F25: 28,560.00
C26: (b) Item 1.2: S.S 45 deg 650mm dia | D26: No | E26: 2 | F26: 28,560.00
C27: (c) Item 1.3: S.S 43.5 deg 550mm dia | D27: No | E27: 1 | F27: 20,448.28
C28: (d) Item 1.4: S.S 90 deg 550mm dia | D28: No | E28: 1 | F28: 20,448.28
C29: (e) Item 1.5: S.S. 45 deg 250mm dia | D29: No | E29: 2 | F29: 14,640.49
C30: (f) Item 1.6: S.S. 90 deg 250mm dia | D30: No | E30: 2 | F30: 14,640.49
C31: (g) Item 1.8: S.S. 45 deg 200mm dia | D31: No | E31: 4 | F31: 9,369.91
C32: (h) Item 1.9 M.S. 90 deg 650mm dia fully flanged | D32: No | E32: 1 | F32: 5,616.00
D33: No | E33: 2 | F33: 6,240.00
C34: (j) Item 1.11: M.S. 55 deg 550mm dia bevel edged bend | D34: No | E34: 1 | F34: 5,616.00
C35: (k) Item 1.12: M.S. 90 deg 250mm dia Bevel edged bend | D35: No | E35: 1 | F35: 1,194.21
A37: L5 | C37: Valves
C38: (a) Item 2.1: 200mm dia, cast iron, gate valve (See SANS1123 Table 1600) | D38: No | E38: 1 | F38: 40,000.00
C39: (b) Item 2.2: 400mm dia, cast iron, gate valve (See SANS1123 Table 1600) | D39: No | E39: 9 | F39: 79,524.72
C40: (c) Item 2.3: 400mm dia, cast iron, Combination control Valve | D40: No | E40: 1 | F40: 1,080,000.00
C41: (d) Item 2.4: 250mm dia, cast iron, Combination control Valve | D41: No | E41: 6 | F41: 675,000.00
C42: (e) Item 2.5: 250mm dia, cast iron, NRV | D42: No | E42: 3 | F42: 49,702.95
A44: L6 | C44: Cut Lengths
A45: L6.1 | C45: Item 4.1: SS 650mm dia pipe (l=2000) One End Flanged. | D45: No | E45: 2 | F45: 7,500.00
C48: TOTAL CARRIED FORWARD | G48: R
C49: TOTAL BROUGHT FORWARD | G49: R
A51: L6.2 | C51: Item 4.2: SS 650mm dia pipe (l=6000) Flanged Both Ends | D51: No | E51: 4 | F51: 15,000.00
A52: L6.3 | C52: Item 4.3: SS 650mm dia pipe (l=1260) No Flanges | D52: No | E52: 1 | F52: 2,500.00
A53: L6.4 | C53: Item 4.4: SS 650mm dia pipe (l=400) Flange one end | D53: No | E53: 1 | F53: 7,500.00
A54: L6.5 | C54: Item 4.5: SS 650mm dia pipe (l=2075) One End Flanged | D54: No | E54: 1 | F54: 7,500.00
A55: L6.6 | C55: Item 4.6: SS 650mm dia pipe (l=2520) One End Flanged | D55: No | E55: 1 | F55: 7,500.00
A56: L6.7 | C56: Item 4.7: SS 550mm dia pipe (l=300) One End Flanged | D56: No | E56: 1 | F56: 7,500.00
A57: L6.8 | C57: Item 4.8: SS 550mm dia pipe (l=6000) Flanged Both Ends | D57: No | E57: 4 | F57: 12,000.00
A58: L6.9 | C58: Item 4.9: SS 550mm dia pipe (l=2660) One End Flanged | D58: No | E58: 1 | F58: 6,000.00
A59: L6.10 | C59: Item 4.10: SS 550mm dia pipe (l=1350) Flanged One End | D59: No | E59: 1 | F59: 6,000.00
A60: L6.11 | C60: Item 4.11: SS 750mm dia pipe (l=300) No Flanges | D60: No | E60: 1 | F60: 25,000.00
A61: L6.12 | C61: Item 4.12: SS 250mm dia pipe (l=350) One End Flanged | D61: No | E61: 1 | F61: 1,000.00
A62: L6.13 | C62: Item 4.13: SS 250mm dia pipe (l=6000) Flanged Both Ends | D62: No | E62: 3 | F62: 3,500.00
A63: L6.14 | C63: Item 4.14: SS 250mm dia pipe (l=2260) One End Flanged | D63: No | E63: 1 | F63: 2,000.00
A64: L6.15 | C64: Item 4.15: SS 250mm dia pipe (l=350) One end flanged | D64: No | E64: 1 | F64: 2,000.00
A65: L6.16 | C65: Item 4.16: SS 250mm dia pipe (l=3900) One End Flanged | D65: No | E65: 1 | F65: 3,500.00
A66: L6.17 | C66: Item 4.17: SS 250mm dia pipe (l=980) One End Flanged | D66: No | E66: 1 | F66: 2,500.00
A67: L6.18 | C67: Item 4.18: SS 200mm dia pipe (l=300) One End Flanged | D67: No | E67: 3 | F67: 1,250.00
A68: L6.19 | C68: Item 4.19: SS 200mm dia pipe (l=415) Flanged Both Ends | D68: No | E68: 1 | F68: 1,500.00
A69: L6.20 | C69: Item 4.20: SS 200mm dia pipe (l=6000) Both Ends Flanged | D69: No | E69: 3 | F69: 9,530.00
A70: L6.21 | C70: Item 4.21: SS 200mm dia pipe (l=1875) Flanged Both Ends | D70: No | E70: 1 | F70: 2,750.00
A71: L6.22 | C71: Item 4.22: SS 200mm dia pipe (l=350) One End Flanged | D71: No | E71: 1 | F71: 1,250.00
A72: L6.23 | C72: Item 4.26: MS 650mm dia pipe (l=19100) One End Flanged, one edge bevelled | D72: No | E72: 1 | F72: 112,320.00
A73: L6.24 | C73: Item 4.27: MS 650mm dia pipe (l=1744) Bevel edged | D73: No | E73: 1 | F73: 2,750.00
A74: L6.25 | C74: Item 4.28: MS 650mm dia pipe (l=510) One end Flanged other bevelled | D74: No | E74: 1 | F74: 1,800.00
A75: L6.26 | C75: Item 4.29: MS 400mm dia pipe (l=500) bevel edged | D75: No | E75: 1 | F75: 2,250.00
A76: L6.27 | C76: Item 4.30: MS 550mm dia pipe (l=10910) Flanged Both Ends | D76: No | E76: 1 | F76: 56,160.00
A77: L6.28 | C77: Item 4.31: MS 550mm dia pipe (l=4481) Flanged Both Ends | D77: No | E77: 1 | F77: 1,000.00
A78: L6.29 | C78: Item 4.32: SS 250mm dia pipe (l=495) Flanged One End | D78: No | E78: 1 | F78: 3,474.90
C81: TOTAL CARRIED FORWARD | G81: R
C82: TOTAL BROUGHT FORWARD | G82: R
A84: L6.29 | C84: Item 4.33: MS 550mm dia pipe (l=586) Both ends flanged | D84: No | E84: 1 | F84: 900.00
A85: L6.30 | C85: Item 4.34: MS 550mm dia pipe (l=2187) One end Flanged | D85: No | E85: 1 | F85: 2,150.00
A86: L6.31 | C86: Item 4.35: MS 550mm dia pipe (l=12631) Bevelled edges | D86: No | E86: 1 | F86: 15,500.00
A87: L6.32 | C87: Item 4.36: MS 400mm dia pipe (l=3955) Both ends flanged | D87: No | E87: 1 | F87: 7,580.00
A88: L6.33 | C88: Item 4.37: MS 400mm dia pipe (l=2293) Both ends flanged | D88: No | E88: 1 | F88: 4,850.00
A89: L6.34 | C89: Item 4.38: MS 350mm dia pipe (l=4895) Both ends flanged | D89: No | E89: 1 | F89: 5,200.00
A90: L6.35 | C90: Item 4.39: MS 250mm dia pipe (l=958) Both ends flanged | D90: No | E90: 1 | F90: 1,200.00
A91: L6.36 | C91: Item 4.40: MS 250mm dia pipe (l=1053) Both ends flanged | D91: No | E91: 1 | F91: 1,250.00
A92: L6.37 | C92: Item 4.41: MS 250mm dia pipe (l=2508) Both ends flanged | D92: No | E92: 1 | F92: 2,650.00
A93: L6.38 | C93: Item 4.42: MS 250mm dia pipe (l=1377) Both ends flanged | D93: No | E93: 1 | F93: 1,450.00
A94: L6.39 | C94: Item 4.43: MS 250mm dia pipe (l=150) Both ends flanged | D94: No | E94: 3 | F94: 750.00
A96: L5 | C96: Reducers
A97: L5.1 | C97: Item 5.1: SS 1000 x 750mm dia Eccentric reducer | D97: No | E97: 1 | F97: 17,500.00
A98: L5.2 | C98: Item 5.2: SS 750 x 500mm dia Eccentric reducer | D98: No | E98: 1 | F98: 15,250.00
A99: L5.3 | C99: Item 5.3: SS 500 x 300mm dia Eccentric reducer | D99: No | E99: 1 | F99: 12,300.00
A100: L5.4 | C100: Item 5.4: SS 300 x 250mm dia Eccentric reducer | D100: No | E100: 1 | F100: 9,750.00
A101: L5.5 | C101: Item 5.5: MS 650 x 400mm dia Concentric reducer | D101: No | E101: 3 | F101: 13,000.00
A102: L5.6 | C102: Item 5.6: MS 550 x 400mm dia Concentric reducer | D102: No | E102: 7 | F102: 9,600.00
A103: L5.7 | C103: Item 5.7: MS 400 x 350mm dia Concentric reducer | D103: No | E103: 1 | F103: 7,250.00
A104: L5.8 | C104: Item 5.8: MS 400 x 250mm dia Concentric reducer | D104: No | E104: 1 | F104: 6,500.00
A105: L5.9 | C105: Item 5.9: MS 350 x 250mm dia Concentric reducer | D105: No | E105: 1 | F105: 5,500.00
A107: L6 | C107: General
A108: L6.1 | C108: Item 1.7: SS 250mm by 200mm Reducing Tee | D108: No | E108: 1 | F108: 3,000.00
A109: L6.2 | C109: Item 3.1: SS 650mm dia pipe (l=1255) with puddle flange | D109: No | E109: 1 | F109: 3,000.00
A110: L6.3 | C110: Item 3.2: SS 650mm dia pipe (l=1085), one end flanged with puddle flange | D110: No | E110: 1 | F110: 3,000.00
C111: Item 3.3: SS 250mm dia pipe (l=995), Paddle flange only | D111: No | E111: 1 | F111: 2,500.00
A112: L6.4 | C112: Item 3.4: SS 200mm dia pipe (l=1000), One end flanged with paddle flange | D112: No | E112: 1 | F112: 2,500.00
A113: L6.7 | C113: Item 3.9: MS 650mm dia pipe (l=1045) fully flanged with puddle flange | D113: No | E113: 3 | F113: 7,500.00
A114: L6.8 | C114: Item 3.10: MS 550mm dia pipe (l=1655) fully flanged with puddle flange | D114: No | E114: 2 | F114: 2,750.00
A115: L6.9 | C115: Item 3.11: MS 400mm dia Equal tee, fuly flanged with 505mm spool piece | D115: No | E115: 4 | F115: 12,500.00
C116: TOTAL CARRIED FORWARD | G116: R
C117: TOTAL BROUGHT FORWARD | G117: R
A119: L6.10 | C119: Item 3.12 MS 650mm dia S-Bend pipe both ends flanged | D119: No | E119: 1 | F119: 12,500.00
A120: L6.11 | C120: Item 3.13 MS 550mm dia S-Bend pipe both ends flanged | D120: No | E120: 1 | F120: 12,500.00
A121: L6.12 | C121: Item 3.14 MS 650mm Blind flange | D121: No | E121: 1 | F121: 2,500.00
A122: L6.13 | C122: Item 3.15: MS 550mm dia pipe (l=1045) fully flanged with puddle flange | D122: No | E122: 3 | F122: 12,500.00
A123: L6.14 | C123: Item 3.16: MS 550 x 300mm dia tee with 300mm spool piece fully flanged | D123: No | E123: 1 | F123: 10,300.00
A124: L6.15 | C124: Item 3.17: MS 550mm Blind flange | D124: No | E124: 2 | F124: 8,750.00
A125: L6.16 | C125: Item 3.18: MS 300mm Blind flange | D125: No | E125: 1 | F125: 6,275.00
A126: L6.17 | C126: Item 3.19: MS 650mm dia 37.65 deg long radius bend with spool piece fully flanged | D126: No | E126: 1 | F126: 11,250.00
A127: L6.18 | C127: Item 3.20: MS 500mm dia Tee with 505 spool piece fully flanged | D127: No | E127: 2 | F127: 8,900.00
A128: L6.19 | C128: Item 3.21: MS 400mm dia Tee with 505 spool piece fully flanged | D128: No | E128: 2 | F128: 6,500.00
A129: L6.20 | C129: Item 3.22: MS 250mm dia Tee with 505 spool piece fully flanged | D129: No | E129: 1 | F129: 3,500.00
A130: L6.21 | C130: Item 3.23: MS 400mm dia Sweeping Tee with 505 spool piece fully flanged | D130: No | E130: 3 | F130: 15,000.00
A132: L7 | C132: Expansion Joints
A133: L7.1 | C133: Item 6.1: SS 650mm dia Expansion Joint | D133: No | E133: 1 | F133: 47,745.00
A134: L7.2 | C134: Item 6.2: SS 550mm dia Expansion Joint | D134: No | E134: 1 | F134: 38,580.00
A135: L7.3 | C135: Item 6.3: SS 250mm dia Expansion Joint | D135: No | E135: 1 | F135: 17,002.50
A137: L8 | C137: Supply, install and commission Pumps
A138: L8.1 | C138: KSB SA OMEGA 250-480A (423 impeller) with a WEG 250kW 380v 355 M/L 4p motor or similar approved including base plate, supply and delivery pipe modifications to ensure fit, capable of following duty: 275l/s at 51.5m with range from 43.5 to 57 | D138: Item | E138: 3 | F138: 727,276.55
A139: L8.2 | C139: Provisional sum to change pipe work to suit selected pump in and outlets | D139: Sum | E139: 1 | F139: 300,000.00
A140: L8.3 | C140: Provisional sum MCC and electrical controls | D140: Sum | E140: 1 | F140: 2,106,650.00
A141: L8.4 | C141: Provisional sum for lighting, socket outlets, cables, earthing and bonding, ups and lightning protection. | D141: Sum | E141: 1 | F141: 392,600.00
A143: L9 | C143: Pipeline route markers
A144: L9.1 | B144: PSL 8.2.18 | C144: Route markers are to be constructed with a 100mm pvc sleeve filled with 20MPa concrete, as per drawing 1440b/WA/Lay01RR & 02RR | D144: No | E144: 10 | F144: 1,500.00
A146: L10 | B146: PL GD | C146: Standby Generator
A147: L10.1 | C147: Design and other documentation | D147: Item | E147: 1 | F147: 20,000.00
A148: L10.2 | C148: Procurement/Fabrication/Installation, Testing and delivery | D148: Item | E148: 1 | F148: 700,000.00
A149: L10.3 | C149: Installation/Testing and comssioning | D149: Item | E149: 1 | F149: 80,000.00
B157: TOTAL FOR SECTION L CARRIED FORWARD TO SUMMARY | G157: R

Sheet LB
A2: ITEM NO | B2: PAYMENT REFERS | C2: SHORT DESCRIPTION | D2: UNIT | E2: QUANTITY | F2: RATE | G2: ADJUSTED RATE | H2: AMOUNT
B4: SABS 1200 LB | C4: SECTION LB: BEDDING FOR PIPES
A6: LB1 | B6: 8.2.1 | C6: PROVISION OF BEDDING
C7: Available from trench excavation without the need for screening or treatment:
C8: Steel pipes (non flexible pipe bedding)
A9: LB1.1 | C9: (a) Selected granular material | D9: m³ | E9: 326 | F9: 100.00
A10: LB1.2 | C10: (b) Selected fill material | D10: m³ | E10: 975 | F10: 100.00
C12: Including screening and/or other treatment:
C13: Steel pipes (non flexible pipe bedding)
A14: LB1.3 | C14: (a) Selected granular material | D14: m³ | E14: 66 | F14: 350.00
A15: LB1.4 | C15: (b) Selected fill material | D15: m³ | E15: 195 | F15: 350.00
A17: LB2 | B17: 8.2.2 | C17: Supply of imported bedding material from:
B18: 8.2.2.2 & 8.2.2.3 | C18: Borrow pits or commercial sources (Provisional)
A19: LB2.1 | C19: (a) Selected granular material | D19: m³ | E19: 33 | F19: 400.00
A20: LB2.2 | C20: (b) Selected fill material | D20: m³ | E20: 98 | F20: 400.00
A22: LB2.3 | C22: Supply and place 6-20 mm graded stone as directed by the Engineer | D22: m³ | E22: 75 | F22: 450.00
A24: LB2.4 | B24: PSLB 8.2.6 | C24: Extra over items 8.2.1 and 8.2.2 for bedding stabilized with 5% cement | D24: m³ | E24: 15 | F24: 0.00
B58: TOTAL FOR SECTION LB CARRIED FORWARD TO SUMMARY | F58: R | G58: R

Sheet ME
A2: ITEM NO | B2: PAYMENT REFERS | C2: SHORT DESCRIPTION | D2: UNIT | E2: QUANTITY | F2: RATE | G2: ADJUSTED RATE | H2: AMOUNT
B4: SABS 1200 ME | C4: SECTION ME: SUBBASE
A6: ME1 | B6: 8.3.2 | C6: SUBBASE
A7: ME1.1 SC | C7: Construct gravel subbase with material from commercial source and compact to 97% Mod AASHTO for paved areas (measured under Work Packages) | D7: m³ | E7: 130.00 | F7: 781.25
A9: ME2 | B9: 8.3.5 | C9: Process material by means of:
A10: ME2.1 SC | C10: (a) Stabilization (measured under Work Packages) | D10: m³ | E10: 130.00 | F10: 0.00
A12: ME3 | B12: 8.3.8 | C12: STABILIZING AGENT
A13: ME3.1 SC | C13: Portland cement (measured under Work Packages) | D13: t | E13: 11.96 | F13: 0.00
B62: TOTAL FOR SECTION ME CARRIED TO SUMMARY | F62: R | G62: R

Sheet LD
A2: ITEM NO | B2: PAYMENT REFERS | C2: SHORT DESCRIPTION | D2: UNIT | E2: TENDER | F2: RATE | G2: ADJUSTED RATE | H2: AMOUNT
B4: SANS 1200 LD | C4: SECTION LD : SEWERS
A6: LD1 | C6: PIPE WORK
C7: Supply, handle, lay, join (butt-fusion) bed in specified class, test and disinfect HDPE pipe PE100, PN12,5, SDR 13,6 (SANS 4427):
A8: LD1.1 SC | C8: (a) 110 mm dia (measured under Work Packages) | D8: m | E8: 157 | F8: 0.00
A10: LD2 | B10: 8.2.3 | C10: MANHOLES
C11: Manholes (1000mm inside diameter) to complete with concrete cover and frame, for depths :
C12: Over and up to :
A13: LD2.1 SC | C13: (a) 3.0 m 4,0 m (measured under Work Packages) | D13: No | E13: 4 | F13: 0.00
A15: LD2.2 SC | C15: Extra-over items LD2.1 to LD2.3 for "Heavy Duty" cover and frame in road areas (measured under Work Packages) | D15: No | E15: 4 | F15: 0.00
A17: LD2.3 SC | B17: 8.2.7 | C17: Encasing 110mm dia pipes in 15 MPA concrete (measured under Work Packages) | D17: m³ | E17: 6 | F17: 0.00
A19: LD2.4 SC | B19: 8.2.11 | C19: Break into existing manhole, connect new network and make good (measured under Work Packages) | D19: No | E19: 1 | F19: 0.00
B53: TOTAL FOR SECTION LD CARRIED TO SUMMARY | F53: R | G53: R

Sheet LG
A2: ITEM NO | B2: PAYMENT REFERS | C2: SHORT DESCRIPTION | D2: UNIT | E2: QUANTITY | F2: ADJUSTED RATE | G2: AMOUNT
B3: SANS 1200LG | C3: SECTION LG: PIPE JACKING
C4: PIPE JACKING AT ROAD CROSSINGS
A5: LG1 | B5: 8.2.1 | C5: Jacking Establishment for 2 positions:
A6: LG1.1 | C6: Fixed charges | D6: Sum | E6: 2
A7: LG1.2 | C7: Time related charges | D7: Sum | E7: 2
A9: LG2 | B9: 8.2.2 | C9: Supply and delivery of pipes to be jacked:
A10: LG2.1 | C10: 900 mm ø Class 100-D with In-the-wall rubber ring joint. | D10: m | E10: 55
A12: LG3 | B12: 8.2.3 | C12: Jacking of pipes:
A13: LG3.1 | C13: 900 mm ø Class 100-D with In-the-wall rubber ring joint. | D13: m | E13: 55
A15: LG4 | B15: 8.2.4 | C15: Excavation for jacking using hand held pneumatic tools:
A16: LG4.1 | C16: Soft excavation-with clay spade attachments | D16: m3 | E16: 53
A17: LG4.2 | C17: Intermediate | D17: m3 | E17: 13
A18: LG4.3 | C18: Extra over LG4.1 for unforseen rock or boulders in the Jacking pit | D18: m3 | E18: 13
A20: LG6 | B20: 8.2.9 | C20: Stabilization of unstable areas and grouting of voids where necessary
A21: LG6.1 | C21: Provision and establishment of equipment on site and removal on completion | D21: No | E21: 2
A22: LG6.2 | C22: Operation of equipment | D22: Day | E22: 2
A23: LG6.3 | C23: Material used based on 10:1 sand cement mix | D23: m3 | E23: 33
C47: TOTAL FOR SECTION LG CARRIED TO SUMMARY
F48: R

Sheet MJ
A2: ITEM NO | B2: PAYMENT REFERS | C2: SHORT DESCRIPTION | D2: UNIT | E2: QUANTITY | F2: RATE | G2: ADJUSTED RATE | H2: AMOUNT
C4: SECTION MJ : SEGMENTED PAVING
A6: MJ1 | C6: CONSTRUCT PRECAST CONCRETE SEGMENTED PAVING
A7: MJ1.1 SC | B7: PSMJ 8.2.2 | C7: Provide and construct segmented paving lain in Herringbone pattern 60 mm thick, 25 Mpa Type S-A concrete paving blocks. Price must include bedding, sand layer, compaction and finishing (Colour to suit Client) (measured under Work Packages) | D7: m² | E7: 738 | F7: 0.00
A9: MJ1.2 SC | B9: 8.2.3 | C9: Cut units to fit edge restraints (measured under Work Packages) | D9: m | E9: 258 | F9: 0.00
A11: MJ1.3 SC | B11: 8.2.4 | C11: Roll to Locked-up Condition as Specified in clause 5.6.2 (provisional) (measured under Work Packages) | D11: m² | E11: 738 | F11: 0.00
B59: TOTAL FOR SECTION MJ CARRIED FORWARD TO SUMMARY | F59: R | G59: R

Sheet MK
A2: ITEM NO | B2: PAYMENT REFERS | C2: SHORT DESCRIPTION | D2: UNIT | E2: QUANTITY | F2: RATE | G2: ADJUSTED RATE | H2: AMOUNT
C4: SECTION MK : KERBING AND CHANNELLING
A6: MK1 SC | B6: 8.2.1 | C6: CONCRETE KERBING
C7: Figure 8 b precast kerbs for new construction
A8: MK1.1 SC | C8: Radius over 20m (measured under Work Packages) | D8: m | E8: 215 | F8: 0.00
A9: MK1.2 SC | C9: Radius less than 20m (measured under Work Packages) | D9: m | E9: 43 | F9: 0.00
A11: MK1.3 SC | C11: Figure 13 precast edge beam for new construction (measured under Work Packages) | D11: m | E11: 258 | F11: 0.00
A13: MK2 SC | C13: TRANSITIONS
C14: From mountable kerb to vertical kerb (measured under Work Packages) | D14: No | E14: 2 | F14: 0.00
A16: MK3 SC | C16: TRIMMING
C17: Trimming of excavations for mountable kerbs :
C18: (a) Soft (measured under Work Packages) | D18: m² | E18: 60 | F18: 0.00
C19: (b) Intermediate (measured under Work Packages) | D19: m² | E19: 10 | F19: 0.00
B55: TOTAL FOR SECTION MK CARRIED FORWARD TO SUMMARY | F55: R | G55: R

Sheet PLB
A2: ITEM NO | B2: PAYMENT REFERS | C2: SHORT DESCRIPTION | D2: UNIT | E2: QUANTITY | F2: RATE | G2: ADJUSTED RATE | H2: AMOUNT
B4: PART SPEC PLB | C4: SECTION PB: MISCELLANEOUS WORK FOR TANKS
A6: PLB1 | B6: PLB 8.1 | C6: STERILIZATION
A7: PLB1.1 | C7: Reservoir and internal pipes | D7: Sum | E7: 1 | F7: 120,000.00
A8: PB1.2 | C8: Supply pipeline | D8: Sum | E8: 1 | F8: 50,000.00
A10: PB2 | B10: PLB 8.2 | C10: WATER TIGHTNESS
A11: PB2.1 | C11: Test for reservoir and pipes for water tightness | D11: Sum | E11: 1 | F11: 80,000.00
A13: PB3 | C13: PROTECTION SYSTEMS
A14: PB3.2 | C14: Aircraft warning light | D14: Prov. Sum | E14: 1 | F14: 90,000.00 | G14: 112,500.00 | H14: =G14 -> 112,500.00
A15: PLB3.3 | C15: CP and DC Mitigation - Professional services and Installation | D15: Prov. Sum | E15: 1 | F15: 2,280,000.00 | G15: 2,850,000.00 | H15: =G15 -> 2,850,000.00
A16: PLB3.4 | C16: Contractors mark-up on PB3.3 above | D16: % | E16: =G15 -> 2,850,000 | F16: 10%
A18: PLB4 | B18: PGENR B1 | C18: FENCING
A19: PLB4.1 SC | C19: 2.4m high concrete fence as per drawing 1440a/WT/DET08RR (measured under Work Packages) | D19: m | E19: 302 | F19: 2,500.00
A20: PLB4.2 SC | B20: PGENR B1 | C20: Supply and install double sliding gate to match security fencing as per drawing 1440a/WT/DET08RR (measured under Work Packages) | D20: No | E20: 1 | F20: 45,000.00
A22: PLB5 | C22: GUARD HOUSE
A23: PLB5.1 SC | B23: PSTRU E | C23: Construct guard house complete as per drawing 1440a/WT/DET06RR (measured under Work Packages) | D23: Sum | E23: 1 | F23: 700,000.00
A25: PLB6 | C25: VALVE ROOM
A26: PLB6.1 SC | B26: PSTRU E | C26: Construct Valve Room as per drawing 1440a/WT/DET07RR (measured under Work Packages) | D26: Sum | E26: 1 | F26: 750,200.00
A27: PLB6.2 SC | C27: Supply and Install overhead Gantry beams complete with 3 ton Block and Tackle (measured under Work Packages) | D27: Sum | E27: 1 | F27: 75,000.00
A29: PLB7 | C29: GENERATOR ROOM
A30: PLB7.1 SC | B30: PSTRU E | C30: Modify existing Pump station to accommodate new generator (measured under Work Packages) | D30: Prov. Sum | E30: 1 | F30: 125,000.00 | G30: 125,000.00 | H30: =G30 -> 125,000.00
B48: TOTAL FOR SECTION PLB CARRIED TO SUMMARY | F48: R | G48: R

Sheet PLG
A2: ITEM NO | B2: PAYMENT REFERS | C2: SHORT DESCRIPTION | D2: UNIT | E2: QUANTITY | F2: RATE | G2: ADJUSTED RATE | H2: AMOUNT
B4: PART SPEC PL G | C4: SECTION PLG: ELECTRICAL WORKS
A5: PLG1 | C5: LV Network and power supplies
A6: PLG1.1 SC | C6: Provisional amount for a 40A, Single phase ESKOM connection fee to the tower site in a position to be indicated on site. (measured under Work Packages) | D6: P. Sum | E6: 1 | F6: 0.00 | G6: 43,750.00 | H6: =G6 -> 43,750.00
A7: PLG1.2 SC | C7: Contractor's overhead, surcharge and profit on item PA1.1 (measured under Work Packages) | D7: % | E7: =G6 -> 43,750 | F7: 0%
A8: PLG1.3 SC | C8: Supply and install a single phase metering kisok to Eskom specification complete with meter and circuit breaker (measured under Work Packages) | D8: No | E8: 1 | F8: 0.00
A10: PLG2 | C10: Conduit and Wiring
A11: PLG2.1 SC | C11: Conduit installed in ceiling void, masonry walls, floors, etc complete with all fixing accessories, couplings, bushes, locknuts, end boxes (50 x 100mm or 100 x 100mm as the case may be), terminations and male adapters
C12: Supply, deliver and Install
C13: (a) 25mm Ø galvanized steel (measured under Work Packages) | D13: m | E13: 200 | F13: 0.00
C14: (b) 25mm Ø u-PVC (measured under Work Packages) | D14: m | E14: 50 | F14: 0.00
A16: PLG2.2 SC | C16: Supply, deliver and install insulated stranded copper conductors
C17: (a) 4 mm² (measured under Work Packages) | D17: m | E17: 150 | F17: 0
C18: (b) 6 mm² (measured under Work Packages) | D18: m | E18: 100 | F18: 0.00
C19: (c) 16mm² 4-core PVC/SWA/PVC (measured under Work Packages) | D19: m | E19: 50 | F19: 0.00
A21: PLG2.3 SC | C21: Supply deliver and install insulated copper earth conductors
C22: (a) 4 mm² (measured under Work Packages) | D22: m | E22: 150 | F22: 0
C23: (b) 6 mm² (measured under Work Packages) | D23: m | E23: 100 | F23: 0
C24: (c) 6mm² BCEW (measured under Work Packages) | D24: m | E24: 30 | F24: 0
A26: PA3 | C26: Distribution Boards
A27: PA3.1 SC | C27: Design and manufacture new factory wired distribution board complete as per schematic diagram and specification. Delivery, offloading, installation and commissioning of new factory wired distribution board
C28: (a) DB-Main at Guard House (measured under Work Packages) | D28: No | E28: 1 | F28: 0.00
C29: (b) Sub DB for Valve room (measured under Work Packages) | D29: No | E29: 1 | F29: 0.00
A31: PA4 | C31: Luminaires
A32: PA4.1 SC | C32: Light fittings complete with lamps and fixing accessories with 5Amp plugs and boxes
C33: (a) Supply, deliver and install Type 1 luminaire (2x54W Open channel) (measured under Work Packages) | D33: No | E33: 10 | F33: 0.00
C34: (b) Supply, deliver and install Beka Dart, spotlight with 70W MH lamp (or similar approved). (measured under Work Packages) | D34: No | E34: 8 | F34: 0.00
A36: PA5 | C36: Socket Outlets
A37: PA5.1 SC | C37: Supply, deliver and install 16A normal surface mounted outdoor water proof single socket outlet complete. (measured under Work Packages) | D37: No | E37: 4 | F37: 0.00
A38: PA5.2 SC | C38: Supply, deliver and install 16A normal embedded in the wal single socket outlet complete. (measured under Work Packages) | D38: No | E38: 6 | F38: 0.00
C40: TOTAL CARRIED FORWARD | F40: R | G40: R
C41: TOTAL BROUGHT FORWARD | F41: R | G41: R
A43: PA6 SC | C43: Light switches complete as specified
C44: Supply, deliver and install 16A single lever one-way light switch (measured under Work Packages) | D44: No | E44: 6 | F44: 0.00
C47: Provisional Sum for Solar Led Flood Lightining as per below specifications | D47: Prov sum | E47: 1 | G47: 500,000.00 | H47: =G47 -> 500,000.00
C49: Solar LED High Masts Floodlights complete as per and in accordance Clause PSW1,PSW2,PSW3,PSW4,PSW5,PSW6,PSW7,PSW8 of portion C: Particular Project Specification.
B106: TOTAL FOR SECTION PLG CARRIED TO SUMMARY | F106: R | G106: R

Sheet 450mm Bedding (hidden)
A1: BEDDING QUANTITIES
A2: Class B (Concrete and vitrified clay) | E2: =+(PI()) -> 3.1
A3: Length of pipe(m) | B3: =Calcs!C130 -> 143 | C3: sewer
A4: Diameter(mm) | B4: 110
A5: (100mm bed,300mm sa) | C5: (dia/4 bed,300mm sa) | E5: (dia/4 bed,400mm sa) | G5: (200mm bed,400mm sa) | I5: (200mm bed,500mm sa)
A6: For 0 to 400 diam | C6: For 401 to 700 diam | E6: For 701 to 800 diam | G6: For 801 to 1000 diam | I6: For 1001 to 2000 diam
A7: Granular cradle(m3) | B7: =+(((2*0.3+$B$4/1000)*(0.1+$B$4/2000))-(PI()*($B$4/1000)^2/8))*$B$3 -> 15.1 | C7: Granular cradle(m3) | D7: =+(((2*0.3+$B$4/1000)*(0.75*$B$4/1000))-(PI()*($B$4/1000)^2/8))*$B$3 -> 7.7 | E7: Granular cradle(m3) | F7: =+(((2*0.4+$B$4/1000)*(0.75*$B$4/1000))-(PI()*($B$4/1000)^2/8))*$B$3 -> 10.1 | G7: Granular cradle(m3) | H7: =+(((2*0.4+$B$4/1000)*(0.2+$B$4/2000))-(PI()*($B$4/1000)^2/8))*$B$3 -> 32.5 | I7: Granular cradle(m3) | J7: =+(((2*0.4+$B$4/1000)*(0.2+$B$4/2000))-(PI()*($B$4/1000)^2/8))*$B$3 -> 32.5
A8: Fill Blanket(m3) | B8: =+(((2*0.3+$B$4/1000)*(0.3+$B$4/2000))-(PI()*($B$4/1000)^2/8))*$B$3 -> 35.4 | C8: Fill Blanket | D8: =+(((2*0.3+$B$4/1000)*(0.3+$B$4/2000))-(PI()*($B$4/1000)^2/8))*$B$3 -> 35.4 | E8: Fill Blanket | F8: =+(((2*0.4+$B$4/1000)*(0.3+$B$4/2000))-(PI()*($B$4/1000)^2/8))*$B$3 -> 45.5 | G8: Fill Blanket | H8: =+(((2*0.4+$B$4/1000)*(0.3+$B$4/2000))-(PI()*($B$4/1000)^2/8))*$B$3 -> 45.5 | I8: Fill Blanket | J8: =+(((2*0.5+$B$4/1000)*(0.3+$B$4/2000))-(PI()*($B$4/1000)^2/8))*$B$3 -> 55.7
A10: Class C (Steel)
A11: (100mm bed,300mm sa) | C11: (100mmbed,400mm sa) | E11: (dia/8 bed,400mm sa) | G11: (dia/8 bed,500mm sa) | I11: (200mm bed,500mm sa)
A12: For 0 to 700 diam | C12: For 701 to 800 diam | E12: For 801 to 1000 diam | G12: For 1001 to 1600 diam | I12: For 1601 to 20000 diam
A13: Granular cradle(m3) | B13: =+(((2*0.3+$B$4/1000)*(0.1+$B$4/6000))-($B$4/1000)^2*(PI()-2)/16)*$B$3 -> 11.9 | C13: Granular cradle(m3) | D13: =+(((2*0.4+$B$4/1000)*(0.1+$B$4/6000))-($B$4/1000)^2*(PI()-2)/16)*$B$3 -> 15.3 | E13: Granular cradle(m3) | F13: =+(((2*0.4+$B$4/1000)*(7/24*$B$4/1000))-($B$4/1000)^2*(PI()-2)/16)*$B$3 -> 4.1 | G13: Granular cradle(m3) | H13: =+(((2*0.5+$B$4/1000)*(7/24*$B$4/1000))-($B$4/1000)^2*(PI()-2)/16)*$B$3 -> 5.0 | I13: Granular cradle(m3) | J13: =+(((2*0.5+$B$4/1000)*(0.2+$B$4/6000))-($B$4/1000)^2*(PI()-2)/16)*$B$3 -> 34.5
A14: Fill Blanket(m3) | B14: =+((2*0.3+$B$4/1000)*(0.3+$B$4/1000+0.1)-(PI()*($B$4/1000)^2/4))*$B$3-B13 -> 38.5 | C14: Fill Blanket | D14: =+((2*0.4+$B$4/1000)*(0.3+$B$4/1000+0.1)-(PI()*($B$4/1000)^2/4))*$B$3-D13 -> 49.7 | E14: Fill Blanket | F14: =+((2*0.4+$B$4/1000)*(0.3+1.125*$B$4/1000)-(PI()*($B$4/1000)^2/4))*$B$3-F13 -> 49.7 | G14: Fill Blanket | H14: =+((2*0.5+$B$4/1000)*(0.3+1.125*$B$4/1000)-(PI()*($B$4/1000)^2/4))*$B$3-H13 -> 60.9 | I14: Fill Blanket | J14: =+((2*0.5+$B$4/1000)*(0.3+$B$4/1000+0.2)-(PI()*($B$4/1000)^2/4))*$B$3-J13 -> 60.9
A16: Flexible Pipe
A17: (100mm bed,300mm sa) | C17: (dia/4bed,300mm sa) | E17: (dia/4 bed,400mm sa) | G17: (200 bed,400mm sa) | I17: (200mm bed,500mm sa)
A18: For 0 to 400 diam | C18: For 401 to 700 diam | E18: For 701 to 800 diam | G18: For 801 to 1000 diam | I18: For 1001 to 20000 diam
A19: Granular cradle(m3) | B19: =+(((2*0.3+$B$4/1000)*(0.2+$B$4/1000))-($B$4/1000)^2*(PI())/4)*$B$3 -> 30.1 | C19: Granular cradle(m3) | D19: =+(((2*0.3+$B$4/1000)*(0.1+$B$4/4000+$B$4/1000))-($B$4/1000)^2*(PI())/4)*$B$3 -> 22.8 | E19: Granular cradle(m3) | F19: =+(((2*0.4+$B$4/1000)*(0.1+$B$4/4000+$B$4/1000))-($B$4/1000)^2*(PI())/4)*$B$3 -> 29.5 | G19: Granular cradle(m3) | H19: =+(((2*0.4+$B$4/1000)*(0.3+$B$4/1000))-($B$4/1000)^2*(PI())/4)*$B$3 -> 52.0 | I19: Granular cradle(m3) | J19: =+(((2*0.5+$B$4/1000)*(0.3+$B$4/1000))-($B$4/1000)^2*(PI())/4)*$B$3 -> 63.7
A20: Fill Blanket(m3) | B20: =+((2*0.3+$B$4/1000)*0.2)*$B$3 -> 20.3 | C20: Fill Blanket | D20: =+((2*0.3+$B$4/1000)*0.2)*$B$3 -> 20.3 | E20: Fill Blanket | F20: =+((2*0.4+$B$4/1000)*0.2)*$B$3 -> 26.0 | G20: Fill Blanket | H20: =+((2*0.4+$B$4/1000)*0.2)*$B$3 -> 26.0 | I20: Fill Blanket | J20: =+((2*0.5+$B$4/1000)*0.2)*$B$3 -> 31.7

Sheet 450mm Bedding (2) (hidden)
A1: BEDDING QUANTITIES
A2: Class B (Concrete and vitrified clay) | E2: =+(PI()) -> 3.1
A3: Length of pipe(m) | B3: =Calcs!C137 -> 1154 | C3: all steel pipes
A4: Diameter(mm) | B4: 650
A5: (100mm bed,300mm sa) | C5: (dia/4 bed,300mm sa) | E5: (dia/4 bed,400mm sa) | G5: (200mm bed,400mm sa) | I5: (200mm bed,500mm sa)
A6: For 0 to 400 diam | C6: For 401 to 700 diam | E6: For 701 to 800 diam | G6: For 801 to 1000 diam | I6: For 1001 to 2000 diam
A7: Granular cradle(m3) | B7: =+(((2*0.3+$B$4/1000)*(0.1+$B$4/2000))-(PI()*($B$4/1000)^2/8))*$B$3 -> 421.6 | C7: Granular cradle(m3) | D7: =+(((2*0.3+$B$4/1000)*(0.75*$B$4/1000))-(PI()*($B$4/1000)^2/8))*$B$3 -> 511.7 | E7: Granular cradle(m3) | F7: =+(((2*0.4+$B$4/1000)*(0.75*$B$4/1000))-(PI()*($B$4/1000)^2/8))*$B$3 -> 624.2 | G7: Granular cradle(m3) | H7: =+(((2*0.4+$B$4/1000)*(0.2+$B$4/2000))-(PI()*($B$4/1000)^2/8))*$B$3 -> 687.0 | I7: Granular cradle(m3) | J7: =+(((2*0.4+$B$4/1000)*(0.2+$B$4/2000))-(PI()*($B$4/1000)^2/8))*$B$3 -> 687.0
A8: Fill Blanket(m3) | B8: =+(((2*0.3+$B$4/1000)*(0.3+$B$4/2000))-(PI()*($B$4/1000)^2/8))*$B$3 -> 710.0 | C8: Fill Blanket | D8: =+(((2*0.3+$B$4/1000)*(0.3+$B$4/2000))-(PI()*($B$4/1000)^2/8))*$B$3 -> 710.0 | E8: Fill Blanket | F8: =+(((2*0.4+$B$4/1000)*(0.3+$B$4/2000))-(PI()*($B$4/1000)^2/8))*$B$3 -> 854.3 | G8: Fill Blanket | H8: =+(((2*0.4+$B$4/1000)*(0.3+$B$4/2000))-(PI()*($B$4/1000)^2/8))*$B$3 -> 854.3 | I8: Fill Blanket | J8: =+(((2*0.5+$B$4/1000)*(0.3+$B$4/2000))-(PI()*($B$4/1000)^2/8))*$B$3 -> 998.5
A10: Class C (Steel)
A11: (100mm bed,300mm sa) | C11: (100mmbed,400mm sa) | E11: (dia/8 bed,400mm sa) | G11: (dia/8 bed,500mm sa) | I11: (200mm bed,500mm sa)
A12: For 0 to 700 diam | C12: For 701 to 800 diam | E12: For 801 to 1000 diam | G12: For 1001 to 1600 diam | I12: For 1601 to 20000 diam
A13: Granular cradle(m3) | B13: =+(((2*0.3+$B$4/1000)*(0.1+$B$4/6000))-($B$4/1000)^2*(PI()-2)/16)*$B$3 -> 265.7 | C13: Granular cradle(m3) | D13: =+(((2*0.4+$B$4/1000)*(0.1+$B$4/6000))-($B$4/1000)^2*(PI()-2)/16)*$B$3 -> 313.8 | E13: Granular cradle(m3) | F13: =+(((2*0.4+$B$4/1000)*(7/24*$B$4/1000))-($B$4/1000)^2*(PI()-2)/16)*$B$3 -> 282.4 | G13: Granular cradle(m3) | H13: =+(((2*0.5+$B$4/1000)*(7/24*$B$4/1000))-($B$4/1000)^2*(PI()-2)/16)*$B$3 -> 326.2 | I13: Granular cradle(m3) | J13: =+(((2*0.5+$B$4/1000)*(0.2+$B$4/6000))-($B$4/1000)^2*(PI()-2)/16)*$B$3 -> 552.3
A14: Fill Blanket(m3) | B14: =+((2*0.3+$B$4/1000)*(0.3+$B$4/1000+0.1)-(PI()*($B$4/1000)^2/4))*$B$3-B13 -> 865.9 | C14: Fill Blanket | D14: =+((2*0.4+$B$4/1000)*(0.3+$B$4/1000+0.1)-(PI()*($B$4/1000)^2/4))*$B$3-D13 -> 1060.1 | E14: Fill Blanket | F14: =+((2*0.4+$B$4/1000)*(0.3+1.125*$B$4/1000)-(PI()*($B$4/1000)^2/4))*$B$3-F13 -> 1060.1 | G14: Fill Blanket | H14: =+((2*0.5+$B$4/1000)*(0.3+1.125*$B$4/1000)-(PI()*($B$4/1000)^2/4))*$B$3-H13 -> 1254.4 | I14: Fill Blanket | J14: =+((2*0.5+$B$4/1000)*(0.3+$B$4/1000+0.2)-(PI()*($B$4/1000)^2/4))*$B$3-J13 -> 1254.4
A16: Flexible Pipe
A17: (100mm bed,300mm sa) | C17: (dia/4bed,300mm sa) | E17: (dia/4 bed,400mm sa) | G17: (200 bed,400mm sa) | I17: (200mm bed,500mm sa)
A18: For 0 to 400 diam | C18: For 401 to 700 diam | E18: For 701 to 800 diam | G18: For 801 to 1000 diam | I18: For 1001 to 20000 diam
A19: Granular cradle(m3) | B19: =+(((2*0.3+$B$4/1000)*(0.2+$B$4/1000))-($B$4/1000)^2*(PI())/4)*$B$3 -> 843.1 | C19: Granular cradle(m3) | D19: =+(((2*0.3+$B$4/1000)*(0.1+$B$4/4000+$B$4/1000))-($B$4/1000)^2*(PI())/4)*$B$3 -> 933.3 | E19: Granular cradle(m3) | F19: =+(((2*0.4+$B$4/1000)*(0.1+$B$4/4000+$B$4/1000))-($B$4/1000)^2*(PI())/4)*$B$3 -> 1143.9 | G19: Granular cradle(m3) | H19: =+(((2*0.4+$B$4/1000)*(0.3+$B$4/1000))-($B$4/1000)^2*(PI())/4)*$B$3 -> 1206.6 | I19: Granular cradle(m3) | J19: =+(((2*0.5+$B$4/1000)*(0.3+$B$4/1000))-($B$4/1000)^2*(PI())/4)*$B$3 -> 1425.8
A20: Fill Blanket(m3) | B20: =+((2*0.3+$B$4/1000)*0.2)*$B$3 -> 288.5 | C20: Fill Blanket | D20: =+((2*0.3+$B$4/1000)*0.2)*$B$3 -> 288.5 | E20: Fill Blanket | F20: =+((2*0.4+$B$4/1000)*0.2)*$B$3 -> 334.6 | G20: Fill Blanket | H20: =+((2*0.4+$B$4/1000)*0.2)*$B$3 -> 334.6 | I20: Fill Blanket | J20: =+((2*0.5+$B$4/1000)*0.2)*$B$3 -> 380.8

Sheet Calcs (hidden)
B1: ITEM | C1: QUANTITY | D1: UNIT | E1: DESCRIPTION | G1: Formulae
G2: Cylinder Volume | H2: V=πr2h
B3: PORTION A (Cylindrical Portion) | G3: Dome Cap Volume | J3: where a = Radius | M3: (1/3)πh2(3r-h) | O3: =((1/3)*PI()*(C46^2)*((3*C50)-C46))-((1/3)*PI()*(C47^2)*((3*C51)-C47)) -> 28.87162919
B4: Water Tower Outer Wall Dia. | C4: 19.600 | D4: m | E4: Measured from .DWG | G4: Conical Volume | H4: V=1/3πh(a2+ab+b2) where a = Upper Radii and b = lower radii)
B5: Water Tower Inner Wall Dia. | C5: =C4-(C8*2) -> 19.000 | D5: m | E5: Measured from .DWG | G5: Surface Area Cone | H5: A=π(a+b)l where a = Upper Radii and b = lower radii)
B6: Water Tower Outer Wall Radius | C6: =C4/2 -> 9.800 | D6: m | G6: Surface Area Dome | H6: A=2πrh
B7: Water Tower Inner Wall Radius | C7: =C5/2 -> 9.500 | D7: m | G7: Surface area Cylinder | H7: A=2πrh
B8: Water Tower Wall Thickness | C8: 0.300 | D8: m | E8: Measured from .DWG | G8: Area Circle | H8: A=πr2
B9: Circumference of Water Tower Outer Wall | C9: =PI()*C4 -> 61.575 | D9: m
B10: Circumference of Water Tower Inner Wall | C10: =PI()*C5 -> 59.690 | D10: m
B11: Height (Portion A Only) | C11: 5.800 | D11: m | E11: Height from WL (+35.10) to 45 deg Point
B12: Water Tower Wall Height | C12: =C11+0.4 -> 6.200 | D12: m | E12: Full Height of cylindrical portion of Water Tower
B14: PORTION B (Conical Portion)
B15: Area in Cross Section | C15: 27.483 | D15: m2 | E15: Area in section obtained from the .dwg
B16: Height (Portion B Only) | C16: 5.930 | D16: m
B17: Upper Diameter | C17: 19.100 | D17: m
B18: Lower Diameter | C18: =C20*2 -> 7.100 | D18: m
B19: Upper Radius | C19: =C17/2 -> 9.550 | D19: m
B20: Lower Radius | C20: =C19-6 -> 3.550 | D20: m
B21: Cone Staircase Upper Radius | C21: 3.662 | D21: m | E21: Radius from centre of staircase to Outer Wall of staircase
B22: Cone Staircase Lower Radius | C22: 5.200 | D22: m | E22: Radius from centre of staircase to Outer Wall of staircase
B23: Cone Staircase Height | C23: 0.738 | D23: m
B25: Upper Staircase Outer Dia. | C25: 3.400 | D25: m
B26: Upper Staircase Inner Dia. | C26: =C25-(2*C29) -> 2.800 | D26: m
B27: Upper Staircase Outer Radius | C27: =C25/2 -> 1.700 | D27: m
B28: Upper Staircase Inner Radius | C28: =C26/2 -> 1.400 | D28: m
B29: Upper Staircase Wall Thickness | C29: 0.300 | D29: m
B30: Circumference of Upper Staircase Outer Wall | C30: =PI()*C25 -> 10.681 | D30: m
B31: Circumference of Upper Staircase Inner Wall | C31: =PI()*C26 -> 8.796 | D31: m
B32: Upper Staircase Full Height | C32: 11.200 | D32: m | E32: Measured from .DWG
B34: Conical Staircase Height | C34: 1.800 | D34: m
B36: Lower Staircase Outer Dia. | C36: 6.200 | D36: m
B37: Lower Staircase Inner Dia. | C37: =C36-(2*C40) -> 5.600 | D37: m
B38: Lower Staircase Outer Radius | C38: =C36/2 -> 3.100 | D38: m
B39: Lower Staircase Inner Radius | C39: =C37/2 -> 2.800 | D39: m
B40: Lower Staircase Wall Thickness | C40: 0.300 | D40: m
B41: Lower Staircase Full Height | C41: 23.130 | D41: m
B42: Circumference of Lower Staircase Outer Wall | C42: =PI()*C36 -> 19.478 | D42: m
B43: Circumference of Lower Staircase Inner Wall | C43: =PI()*C37 -> 17.593 | D43: m
B45: Dome Roof Thickness | C45: 0.300 | D45: m | E45: Tapers from 0.300m to 0.125m
B46: Dome Outer Height | C46: 2.850 | D46: m
B47: Dome Inner Height | C47: 2.700 | D47: m
B48: Dome Outer Dia. | C48: =C4 -> 19.600 | D48: m
B49: Dome Inner Dia. | C49: =C5 -> 19.000 | D49: m
B50: Dome Outer Radius | C50: =C48/2 -> 9.800 | D50: m
B51: Dome Inner Radius | C51: =C49/2 -> 9.500 | D51: m
B53: WATER VOLUME CAPACITY
B54: Portion A Water Volume | C54: =(PI()*C7^2*C11)-(PI()*C27^2*C11) -> 1591.807 | D54: m3 | E54: Volume of Water Tower Inner Wall - Volume of Upper Staircase Outer Wall
B55: Portion B Water Volume | C55: =(1/3*PI()*C16*(C20^2+(C20*C19)+C19^2))-(PI()*C27^2*5.2)-(1/3*PI()*C23*(C21^2+(C21*C22)+C22^2)) -> 761.957 | D55: m3 | E55: Cone Volume of Portion B - Cylindrical Staircase Outer Wall of Portion B - Conical Volume of Staircse of Portion B
B56: Water Tower Total WATER Volume | C56: =ROUNDUP(SUM(C54:C55),0) -> 2354.000 | D56: m3 | E56: Total Volume of Water Capacity up to WL = +35.10
B57: Water Tower Total WATER Volume | C57: =C56*1000/1000 -> 2354.000 | D57: kl
B59: Base Length | C59: 15.000 | D59: m
B60: Base Width | C60: 15.000 | D60: m
B61: Base Height | C61: 1.850 | D61: m
B62: Blinding Layer Length | C62: 15.500 | D62: m
B63: Blinding Layer Width | C63: 15.500 | D63: m
B64: Blinding Layer thickness | C64: 0.050 | D64: m
B65: Lower Staircase Base Diameter | C65: =C36 -> 6.200 | D65: m
B66: Lower Staircase Base Radius | C66: =C65/2 -> 3.100 | D66: m
B67: Lower Staircase Base Height | C67: =0.6 -> 0.600 | D67: m
B70: BLINDING CONCRETE VOLUME
B71: 125mm Blinding Concrete | C71: =C62*C63*C64 -> 12.013 | D71: m3
B72: Total Blinding Concrete Volume | C72: =ROUNDUP(SUM(C71),0) -> 13.000 | D72: m3
B74: CONCRETE VOLUME
B75: Concrete Base | C75: =C59*C60*C61 -> 416.250 | D75: m3
B76: Lower Staircase Base (0.6m High) | C76: =PI()*C66^2*C67 -> 18.114 | D76: m3
B77: Lower Staircase Wall Volume | C77: =(PI()*C38^2*C41)-(PI()*C39^2*C41) -> 128.617 | D77: m3 | E77: 26m = Lower Staircase Height
B78: Lower Staircase Platform Volume | C78: =(PI()*C39^2*0) -> 0.000 | D78: m3 | E78: 0.00m = Platform Thickness
B79: Upper Staircase Wall Volume | C79: =(PI()*C27^2*C32)-(PI()*C28^2*C32) -> 32.723 | D79: m3 | E79: 11.2m = Upper Staircase Height
B80: Upper Staircase Platform Volume | C80: =(PI()*C28^2*0.2) -> 1.232 | D80: m3
B81: Conical Staircase Wall Volume Upper Portion | C81: =((1/3)*PI()*0.729*(1.831^2+(1.831*2.6)+2.6^2))-((1/3)*PI()*0.729*(1.4^2+(1.4*1.9671)+1.9671^2)) -> 4.802 | D81: m3 | E81: Measured from .dwg: Height = 0.729m Outer Radii: a = 1.831m b = 2.6m Inner Radii: a = 1.4m b = 1.9671m
B82: Conical Staircase Wall Volume Lower Portion | C82: =((1/3)*PI()*1.071*(3.1^2+(3.1*4.1341)+4.1341^2))-((1/3)*PI()*1.071*(1.9671^2+(1.9671*2.8)+2.8^2)) -> 25.010 | D82: m3 | E82: Measured from .dwg: Height = 1.071m Outer Radii: a = 3.1m b = 4.1341m Inner Radii: a = 1.9671m b = 2.8m
B83: Cylindrical Water Tower Wall (Portion A) | C83: =(PI()*C6^2*C12)-(PI()*C7^2*C12) -> 112.777 | D83: m3
B84: Conical Water Tower Wall (Portion B) | C84: =((1/3)*PI()*C16*(4.1341^2+(4.1341*C6)+C6^2))-((1/3)*PI()*C16*(3.4^2+(3.4*C7)+C7^2)) -> 121.310 | D84: m3 | E84: Measured from .dwg: Height = 5.930m Outer Radii: a = 4.1341m b = 9.7m Inner Radii: a = 3.4m b = 9.4m
B85: Dome Roof volume | C85: =(((PI()*C46)/6)*((3*C50^2)+C46^2))-(((PI()*C47)/6)*((3*C51^2)+C47^2)) -> 49.000 | D85: m3 | E85: =((1/3)*PI()*(C46^2)*((3*C50)-C46))-((1/3)*PI()*(C47^2)*((3*C51)-C47)) -> 28.872
B86: Spiral Staircase Volume | D86: m3 | E86: TBC - Concrete or steel?
D87: m3
B88: Total Concrete Volume | C88: =ROUNDUP(SUM(C75:C87),0) -> 910.000 | D88: m3
B90: SURFACE AREA
B91: Dome Outside | C91: =2*PI()*C50*C46 -> 175.489 | D91: m2
B92: Dome Inside | C92: =2*PI()*C51*C47 -> 161.164 | D92: m2
B93: Cylindrical Water Tower Wall Outside | C93: =2*PI()*C6*C12 -> 381.766 | D93: m2
B94: Cylindrical Water Tower Wall Inside | C94: =2*PI()*C7*C12 -> 370.080 | D94: m2
B95: Conical Water Tower Wall Outside | C95: =PI()*(C20+C19)*9.5009 -> 391.008 | D95: m2 | E95: l = 9.5009m
B96: Conical Water Tower Wall Inside | C96: =PI()*(C7+C39)*8.4354 -> 325.957 | D96: m2 | E96: l = 8.4354m
B97: Conical Water Tower Horizontal Lip | C97: =(PI()*3.4^2)-(PI()*2.6^2) -> 15.080 | D97: m2 | E97: Outer Radius of Lip = 3.4m; Inner Radius of Lip = 2.6m
B98: Upper Staircase Outer Wall | C98: =2*PI()*C27*C32 -> 119.632 | D98: m2
B99: Upper Staircase Inner Wall | C99: =2*PI()*C28*C32 -> 98.520 | D99: m2
B100: Lower Staircase Outer Wall | C100: =2*PI()*C38*C41 -> 450.523 | D100: m2
B101: Lower Staircase Inner Wall | C101: =2*PI()*C39*C41 -> 406.924 | D101: m2
B102: Lower Staircase Base Outer | C102: =2*PI()*C60*C61 -> 174.358 | D102: m2
B103: Lower Staircase Base Top | C103: =(PI()*C60^2)-(PI()*C38^2) -> 676.668 | D103: m2
B104: Conical Staircase Outside | C104: =PI()*(C27+C38)*1.2403 -> 18.703 | D104: m2 | E104: l = 1.2403m
B105: Conical Staircase Inside | C105: =PI()*(C38+C28)*2.2804 -> 32.238 | D105: m2 | E105: l = 2.2804m
B106: Lower Staircase Floor | C106: =PI()*C39^2 -> 24.630 | D106: m2
B107: Total Surface Area | C107: =ROUNDUP(SUM(C91:C106),0) -> 3823.000 | D107: m2
B110: Site Clearance - Measured from CAD | C110: =1.1*2050 -> 2255 | E110: Measrued from CAD
B111: Blinding area | C111: =C62*C63 -> 240
B112: narrow width on dome outside | C112: =2*PI()*C50*1.1 -> 68
B113: Total Base excavation | C113: =1.1*(C59+1)*(C60+1)*(C61+C67+0.1) -> 718 | D113: m3
B114: Valve Chamber excavation | C114: =1.1*(C120+1)*(1+C121)*C124 -> 493 | D114: m3
B115: Scour box excavation | C115: 0 | D115: m3 | E115: On top of base
B117: walkway fwk on top of internal walls | C117: =PI()*2*2.3*0.8 -> 12 | D117: m2
B118: Tower base wood float | C118: =PI()*7.5^2*1.1 -> 194
B120: Valve room - Length | C120: 10.42 | E120: Length
B121: Width | C121: 6.13 | E121: Width
B122: Wall height | C122: 2.2
B123: Brick wall height | C123: 3.3
B124: Total Height | C124: =C123+C122 -> 5.5
B125: Base thickness | C125: 0.25
B127: Guard house | C127: 3 | E127: Length
C128: 5.48 | E128: Width
B130: sewer line length | C130: =130*1.1 -> 143 | D130: measured on Google earth
B131: Paving area | C131: =1.1*671 -> 738.1 | D131: measrued from C3d
B133: Pipe Length | F133: 0m-1m | G133: 1m-2m | H133: 2m-3m
B134: 650mm supply | C134: =F134+G134+H134 -> 1000 | E134: 650mm supply | F134: 0 | G134: 880 | H134: 120
B135: 400mm at reservoir | C135: =F135+G135+H135 -> 30 | E135: 400mm at reservoir | G135: 30
B136: 550mm | C136: =F136+G136+H136 -> 19 | E136: 550mm | G136: 19
B137: total | C137: =C136*1.1+C135*1.1+C134*1.1 -> 1153.9 | E137: Sewer | H137: =C130 -> 143
E138: Electrical from Connection to Main DB | F138: 40 | I138: Estimated from site layout + Risk
E139: Telemetry sleeves | F139: =20 -> 20 | I139: Measrued from Site layout
E140: Total | F140: =SUM(F134:F139) -> 60 | G140: =SUM(G134:G139) -> 929 | H140: =SUM(H134:H139) -> 263
B141: overflow/scour box | C141: 4.1 | D141: length
C142: 0.3 | D142: base height
C143: 2.075 | D143: wall height
C144: 0.2 | D144: wall t
C145: 1.4 | D145: width

Sheet Pipe Fittings (hidden)
H1: nrv | I1: non return valve | Q1: ecc | R1: eccentric | V1: pf | W1: puddle flange
Q2: con | R2: concentric | V2: oef | W2: one end flanged
Q3: ff | R3: fully flanged | V3: bef | W3: both ends flanged
B5: BENDS | G5: VALVES | K5: CUT LENGTHS | P5: REDUCERS | U5: GENERAL
B6: Item No | C6: Quantity | D6: Description | E6: Length | G6: Item No | H6: Quantity | I6: Description | K6: Item No | L6: Quantity | M6: Description | N6: Length | P6: Item No | Q6: Quantity | R6: Description | S6: Length | U6: Item No | V6: Quantity | W6: Description | X6: Length
B7: 1.1 | C7: =1+1 -> 2 | D7: SS 650mm dia | E7: 90 deg | G7: 2.1 | H7: 1 | I7: 200mm Gate valve | K7: 4.1 | L7: 2 | M7: ss 650 oef | N7: 2000 | P7: 5.1 | Q7: 1 | R7: 1000 to 750 | S7: ecc | U7: 1.7 | V7: 1 | W7: 250 by 200 reducing tee | X7: 90 and 100
B8: 1.2 | C8: =1+1 -> 2 | D8: SS 650mm dia | E8: 45 deg | G8: 2.2 | H8: =3+6 -> 9 | I8: 400mm gate valve | K8: 4.2 | L8: 4 | M8: ss 650 bef | N8: 6000 | P8: 5.2 | Q8: 1 | R8: 750 to 500 | S8: ecc | U8: 3.1 | V8: 1 | W8: SS 650, pf | X8: 1255
B9: 1.3 | C9: 1 | D9: SS 550mm dia | E9: 43.5 deg | G9: 2.3 | H9: 1 | I9: 400mm combination control valve | K9: 4.3 | L9: 1 | M9: ss 650 oef | N9: 1260 | P9: 5.3 | Q9: 1 | R9: 500 to 300 | S9: ecc | U9: 3.2 | V9: 1 | W9: SS 550, pf, oef | X9: 1085
B10: 1.4 | C10: 1 | D10: SS 550mm dia | E10: 90 deg | G10: 2.4 | H10: 6 | I10: 250mm combi control valve | K10: 4.4 | L10: 1 | M10: ss650 oef | N10: 400 | P10: 5.4 | Q10: 1 | R10: 300 to 250 | S10: ecc | U10: 3.3 | V10: 1 | W10: SS 250, pf | X10: 995
B11: 1.5 | C11: =1+1 -> 2 | D11: SS 250mm dia | E11: 45 deg | G11: 2.5 | H11: 3 | I11: 250mm NRV | K11: 4.5 | L11: 1 | M11: ss 650 oef | N11: 2075 | P11: 5.5 | Q11: 3 | R11: 650 to 400 | S11: con ff | U11: 3.4 | V11: 1 | W11: SS 200 pf, oef | X11: 1000
B12: 1.6 | C12: 1 | D12: SS 250mm dia | E12: 90 deg | K12: 4.6 | L12: 1 | M12: ss 650 oef | N12: 2520 | P12: 5.6 | Q12: =3+4 -> 7 | R12: 550 to 400 | S12: con ff | U12: 3.5
B13: 1.7 | D13: See GENERAL | K13: 4.7 | L13: 1 | M13: ss550 oef | N13: 300 | P13: 5.7 | Q13: 1 | R13: 400 to 350 | S13: con ff | U13: 3.6
B14: 1.8 | C14: =1+1+1+1 -> 4 | D14: SS 200mm dia | E14: 45 deg | K14: 4.8 | L14: 3 | M14: ss550 bef | N14: 6000 | P14: 5.8 | Q14: 1 | R14: 400 to 250 | S14: con ff | U14: 3.7
B15: 1.9 | C15: 1 | D15: SS 200mm dia | E15: 90 deg | K15: 4.9 | L15: 1 | M15: ss550 oef | N15: 2660 | P15: 5.9 | Q15: 1 | R15: 350 to 250 | S15: con ff | U15: 3.8
B16: 1.10 | C16: 2 | D16: MS 650mm dia | E16: 47.83 deg | K16: 4.10 | L16: 1 | M16: ss550 oef | N16: 1350 | U16: 3.9 | V16: 3 | W16: MS 650 , pf, ff | X16: 1045
B17: 1.11 | C17: 1 | D17: MS 550mm dia | E17: 55 deg | K17: 4.11 | L17: 1 | M17: ss750 | N17: 300 | U17: 3.10 | V17: 2 | W17: MS 550, pf, ff | X17: 1655
B18: 1.12 | C18: 1 | D18: MS 250mm dia | E18: 90 deg | K18: 4.12 | L18: 1 | M18: ss350 oef | N18: 350 | U18: 3.11 | V18: 4 | W18: MS 400 ,ff, tee, 505 spool | X18: 610
K19: 4.13 | L19: 4 | M19: ss250 bef | N19: 6000 | U19: 3.12 | V19: 1 | W19: MS 650,ff, s-bend 45 deg | X19: 3350
K20: 4.14 | L20: 1 | M20: ss250 oef | N20: 2260 | U20: 3.13 | V20: 1 | W20: ms 550, s-bend 45 deg
K21: 4.15 | L21: 1 | M21: ss250 oef | N21: 350 | U21: 3.14 | V21: 1 | W21: ms 650 blind flange
K22: 4.16 | L22: 1 | M22: ss250oef | N22: 3900 | U22: 3.15 | V22: 1 | W22: ms 550 pf, ff | X22: 1045
K23: 4.17 | L23: 1 | M23: ss250oef | N23: 980 | U23: 3.16 | V23: 1 | W23: ms 550 by 300 tee
K24: 4.18 | L24: 3 | M24: ss200oef | N24: 300 | U24: 3.17 | V24: 2 | W24: ms 550 blind flange
K25: 4.19 | L25: 1 | M25: ss200 | N25: 415 | U25: 3.18 | V25: 1 | W25: ms 300 blind flange
K26: 4.20 | L26: 3 | M26: ss200 bef | N26: 6000 | U26: 3.19 | V26: 1 | W26: ms 650 long radius bend | X26: ff
K27: 4.21 | L27: 1 | M27: ss200 bef | N27: 1875 | U27: 3.20 | V27: 2 | W27: ms 500 equal t
K28: 4.22 | L28: 1 | M28: ss200oef | N28: 350 | U28: 3.21 | V28: 2 | W28: ms 400 equal t
K29: 4.23 | U29: 3.22 | V29: 1 | W29: 350 by 250 reducing t
K30: 4.24 | U30: 3.23 | V30: 3 | W30: 400 by 250 sweeping tee
K31: 4.25
K32: 4.26 | L32: 1 | M32: ms650 oef | N32: 19100
K33: 4.27 | L33: 1 | M33: ms650 bevelled | N33: 1744
K34: 4.28 | L34: 1 | M34: ms650 oef | N34: 510
K35: 4.29 | L35: 6 | M35: ms400 bef | N35: 500
K36: 4.30 | L36: 1 | M36: ms550ff | N36: 10910
K37: 4.31 | L37: 1 | M37: ms550 ff | N37: 2675
K38: 4.32 | L38: 1 | M38: ss250 oef | N38: 495
K39: 4.33 | L39: 1 | M39: ms 550 bef | N39: 586
K40: 4.34 | L40: 1 | M40: ms 550 oef | N40: 2187
K41: 4.35 | L41: 1 | M41: ms 550 oef | N41: 12631
K42: 4.36 | L42: 1 | M42: ms 400 bef | N42: 3955
K43: 4.37 | L43: 1 | M43: ms 400 bef | N43: 2293
K44: 4.38 | L44: 1 | M44: ms 350 bef | N44: 4895
K45: 4.39 | L45: 1 | M45: ms 250 bef | N45: 958
K46: 4.40 | L46: 1 | M46: ms 250 bef | N46: 1053
K47: 4.41 | L47: 1 | M47: ms 250 oef | N47: 2508
K48: 4.42 | L48: 1 | M48: ms 250 oef | N48: 1377
K49: 4.43 | L49: 3 | M49: ms 150bef | N49: 150
